Workbook

Sheet Firemná Liga-Východ
B3: Kolo 1. (Netto) | C3: Kolo 1. (Brutto) | D3: Kolo 2. (Netto) | E3: Kolo 2. (Brutto) | F3: Kolo 3. (Netto) | G3: Kolo 3. (Brutto) | H3: Kolo 4. (Netto) | I3: Kolo 4. (Brutto) | J3: Kolo 5. (Netto) | K3: Kolo 5. (Brutto) | L3: Kolo 6. (Netto) | M3: Kolo 6. (Brutto)
A5: DKC | B5: Kolo 1. (Netto) | C5: Kolo 1. (Brutto) | D5: Kolo 2. (Netto) | E5: Kolo 2. (Brutto) | F5: Kolo 3. (Netto) | G5: Kolo 3. (Brutto) | H5: Kolo 4. (Netto) | I5: Kolo 4. (Brutto) | J5: Kolo 5. (Netto) | K5: Kolo 5. (Brutto) | L5: Kolo 6. (Netto) | M5: Kolo 6. (Brutto)
A6: Ondrej Chudý | B6: 31 | C6: 9 | D6: 36 | E6: 14 | F6: 29 | G6: 10 | H6: 30 | I6: 13
A7: Jaroslav Kanka | B7: 33 | C7: 12 | D7: 22 | E7: 8 | F7: 35 | G7: 19 | H7: 36 | I7: 21
A8: Ján Babic | B8: 30 | C8: 13 | D8: 23 | E8: 10 | F8: 0 | G8: 0 | H8: 0 | I8: 0
A9: Jiří Příkazský | B9: 33 | C9: 18 | D9: 22 | E9: 10 | F9: 36 | G9: 22 | H9: 34 | I9: 20
A10: 1. Výberový výsledok | B10: =IFERROR(LARGE(B6:B9,1),0) -> 33 | C10: =IFERROR(LARGE(C6:C9,1),0) -> 18 | D10: =IFERROR(LARGE(D6:D9,1),0) -> 36 | E10: 14 | F10: 36 | G10: 22 | H10: 36 | I10: 21 | J10: 0 | K10: 0 | L10: 0 | M10: 0
A11: 2. Výberový výsledok | B11: =IFERROR(LARGE(B7:B10,2),0) -> 33 | C11: =IFERROR(LARGE(C6:C9,2),0) -> 13 | D11: =IFERROR(LARGE(D7:D10,2),0) -> 23 | E11: 10 | F11: =IFERROR(LARGE(F6:F9,2),0) -> 35 | G11: 19 | H11: 34 | I11: 20 | J11: 0 | K11: 0 | L11: 0 | M11: 0
A12: Výsledok | B12: =IFERROR(SUM(B10:B11),0) -> 66 | C12: =IFERROR(SUM(C10:C11),0) -> 31 | D12: =IFERROR(SUM(D10:D11),0) -> 59 | E12: 24 | F12: 71 | G12: 41 | H12: 70 | I12: 41 | J12: 0 | K12: 0 | L12: 0 | M12: 0
A14: Reflex | B14: Kolo 1. (Netto) | C14: Kolo 1. (Brutto) | D14: Kolo 2. (Netto) | E14: Kolo 2. (Brutto) | F14: Kolo 3. (Netto) | G14: Kolo 3. (Brutto) | H14: Kolo 4. (Netto) | I14: Kolo 4. (Brutto) | J14: Kolo 5. (Netto) | K14: Kolo 5. (Brutto) | L14: Kolo 6. (Netto) | M14: Kolo 6. (Brutto)
A15: Peter Páltik | B15: 31 | C15: 15 | D15: 29 | E15: 13 | F15: 32 | G15: 18 | H15: 24 | I15: 12
A16: Silvia Páltiková | B16: 26 | C16: 8 | D16: 36 | E16: 17 | F16: 27 | G16: 15 | H16: 30 | I16: 15
A17: Jaroslav Krčmář | B17: 32 | C17: 22 | D17: 34 | E17: 24 | F17: 30 | G17: 22 | H17: 34 | I17: 26
A18: Vladimír Fárek | B18: 29 | C18: 24 | D18: 28 | E18: 23 | F18: 30 | G18: 25 | H18: 29 | I18: 24
A19: 1. Výberový výsledok | B19: =IFERROR(LARGE(B15:B18,1),0) -> 32 | C19: =IFERROR(LARGE(C15:C18,1),0) -> 24 | D19: 36 | E19: 24 | F19: 32 | G19: 25 | H19: 34 | I19: 26 | J19: 0 | K19: 0 | L19: 0 | M19: 0
A20: 2. Výberový výsledok | B20: =IFERROR(LARGE(B15:B18,2),0) -> 31 | C20: =IFERROR(LARGE(C15:C18,2),0) -> 22 | D20: 34 | E20: 23 | F20: 30 | G20: 22 | H20: 30 | I20: 24 | J20: 0 | K20: 0 | L20: 0 | M20: 0
A21: Výsledok | B21: =SUM(B19:B20) -> 63 | C21: =SUM(C19:C20) -> 46 | D21: =SUM(D19:D20) -> 70 | E21: 47 | F21: 62 | G21: 47 | H21: 64 | I21: 50 | J21: 0 | K21: 0 | L21: 0 | M21: 0
A23: BMM | B23: Kolo 1. (Netto) | C23: Kolo 1. (Brutto) | D23: Kolo 2. (Netto) | E23: Kolo 2. (Brutto) | F23: Kolo 3. (Netto) | G23: Kolo 3. (Brutto) | H23: Kolo 4. (Netto) | I23: Kolo 4. (Brutto) | J23: Kolo 5. (Netto) | K23: Kolo 5. (Brutto) | L23: Kolo 6. (Netto) | M23: Kolo 6. (Brutto)
A24: Marián Mareš | B24: 27 | C24: 16 | D24: 27 | E24: 16 | F24: 34 | G24: 24 | H24: 19 | I24: 9
A25: Ján Martinka | B25: 30 | C25: 13 | D25: 31 | E25: 14 | F25: 0 | G25: 0 | H25: 0 | I25: 0
A26: Róbert Žatko | B26: 21 | C26: 14 | D26: 29 | E26: 21 | F26: 25 | G26: 19 | H26: 33 | I26: 27
A27: Renáta Borčinová | B27: 0 | C27: 0 | D27: 0 | E27: 0 | F27: 27 | G27: 13 | H27: 28 | I27: 14
A28: 1. Výberový výsledok | B28: =IFERROR(LARGE(B24:B27,1),0) -> 30 | C28: =IFERROR(LARGE(C24:C27,1),0) -> 16 | D28: 31 | E28: 21 | F28: 34 | G28: 24 | H28: 33 | I28: 27 | J28: 0 | K28: 0 | L28: 0 | M28: 0
A29: 2. Výberový výsledok | B29: =IFERROR(LARGE(B24:B27,2),0) -> 27 | C29: =IFERROR(LARGE(C24:C27,2),0) -> 14 | D29: 29 | E29: 16 | F29: 27 | G29: 19 | H29: 28 | I29: 14 | J29: 0 | K29: 0 | L29: 0 | M29: 0
A30: Výsledok | B30: =SUM(B28:B29) -> 57 | C30: =SUM(C28:C29) -> 30 | D30: 60 | E30: 37 | F30: 61 | G30: 43 | H30: 61 | I30: 41 | J30: 0 | K30: 0 | L30: 0 | M30: 0
A32: Tatramat | B32: Kolo 1. (Netto) | C32: Kolo 1. (Brutto) | D32: Kolo 2. (Netto) | E32: Kolo 2. (Brutto) | F32: Kolo 3. (Netto) | G32: Kolo 3. (Brutto) | H32: Kolo 4. (Netto) | I32: Kolo 4. (Brutto) | J32: Kolo 5. (Netto) | K32: Kolo 5. (Brutto) | L32: Kolo 6. (Netto) | M32: Kolo 6. (Brutto)
A33: Pavol Ovšonka | B33: 24 | C33: 3 | D33: 29 | E33: 5 | F33: 19 | G33: 3 | H33: 16 | I33: 1
A34: Ľubomír Lizák | B34: 34 | C34: 22 | D34: 28 | E34: 17 | F34: 24 | G34: 15 | H34: 27 | I34: 18
A35: Emil Bdžoch | B35: 19 | C35: 4 | D35: 34 | E35: 11 | F35: 22 | G35: 7 | H35: 17 | I35: 5
A36: Příkazský Jiří | B36: 0 | C36: 0 | D36: 0 | E36: 0 | F36: 36 | G36: 22 | H36: 34 | I36: 20
A37: 1. Výberový výsledok | B37: =IFERROR(LARGE(B33:B36,1),0) -> 34 | C37: =IFERROR(LARGE(C33:C36,1),0) -> 22 | D37: 34 | E37: 17 | F37: 36 | G37: 22 | H37: 34 | I37: 20 | J37: 0 | K37: 0 | L37: 0 | M37: 0
A38: 2. Výberový výsledok | B38: =IFERROR(LARGE(B33:B36,2),0) -> 24 | C38: =IFERROR(LARGE(C33:C36,2),0) -> 4 | D38: 29 | E38: 11 | F38: 24 | G38: 15 | H38: 27 | I38: 18 | J38: 0 | K38: 0 | L38: 0 | M38: 0
A39: Výsledok | B39: =SUM(B37:B38) -> 58 | C39: =SUM(C37:C38) -> 26 | D39: =SUM(D37:D38) -> 63 | E39: 28 | F39: 60 | G39: 37 | H39: 61 | I39: 38 | J39: 0 | K39: 0 | L39: 0 | M39: 0
A41: Four trade/Predium | B41: Kolo 1. (Netto) | C41: Kolo 1. (Brutto) | D41: Kolo 2. (Netto) | E41: Kolo 2. (Brutto) | F41: Kolo 3. (Netto) | G41: Kolo 3. (Brutto) | H41: Kolo 4. (Netto) | I41: Kolo 4. (Brutto) | J41: Kolo 5. (Netto) | K41: Kolo 5. (Brutto) | L41: Kolo 6. (Netto) | M41: Kolo 6. (Brutto)
A42: Štefan Kozel | B42: 34 | C42: 16 | D42: 35 | E42: 15 | F42: 29 | G42: 13 | H42: 32 | I42: 18
A43: Miroslav Krčmár | B43: 36 | C43: 19 | D43: 38 | E43: 20 | F43: 31 | G43: 18 | H43: 35 | I43: 22
A44: Anna Krčmárová | B44: 35 | C44: 8 | D44: 28 | E44: 6 | F44: 25 | G44: 8 | H44: 31 | I44: 13
A45: Marta Kozelová | B45: 0 | C45: 0 | D45: 0 | E45: 0 | F45: 23 | G45: 6 | H45: 25 | I45: 9
A46: 1. Výberový výsledok | B46: =IFERROR(LARGE(B42:B45,1),0) -> 36 | C46: =IFERROR(LARGE(C42:C45,1),0) -> 19 | D46: 38 | E46: 20 | F46: 31 | G46: 18 | H46: 35 | I46: 22 | J46: 0 | K46: 0 | L46: 0 | M46: 0
A47: 2. Výberový výsledok | B47: =IFERROR(LARGE(B42:B45,2),0) -> 35 | C47: =IFERROR(LARGE(C42:C45,2),0) -> 16 | D47: 35 | E47: 15 | F47: 29 | G47: 13 | H47: 32 | I47: 18 | J47: 0 | K47: 0 | L47: 0 | M47: 0
A48: Výsledok | B48: =SUM(B46:B47) -> 71 | C48: =SUM(C46:C47) -> 35 | D48: =SUM(D46:D47) -> 73 | E48: 35 | F48: 60 | G48: 31 | H48: 67 | I48: 40 | J48: 0 | K48: 0 | L48: 0 | M48: 0
A50: Sotogrande | B50: Kolo 1. (Netto) | C50: Kolo 1. (Brutto) | D50: Kolo 2. (Netto) | E50: Kolo 2. (Brutto) | F50: Kolo 3. (Netto) | G50: Kolo 3. (Brutto) | H50: Kolo 4. (Netto) | I50: Kolo 4. (Brutto) | J50: Kolo 5. (Netto) | K50: Kolo 5. (Brutto) | L50: Kolo 6. (Netto) | M50: Kolo 6. (Brutto)
A51: Mário Sisík | B51: 34 | C51: 9 | D51: 39 | E51: 14 | F51: 0 | G51: 0 | H51: 0 | I51: 0
A52: Ladislav Hrivko | B52: 19 | C52: 8 | D52: 0 | E52: 0 | F52: 0 | G52: 0 | H52: 0 | I52: 0
A53: Hráč 3 | B53: - | C53: - | D53: - | E53: - | F53: - | G53: - | H53: - | I53: - | J53: - | K53: - | L53: - | M53: -
A54: Hráč 4 | B54: - | C54: - | D54: - | E54: - | F54: - | G54: - | H54: - | I54: - | J54: - | K54: - | L54: - | M54: -
A55: 1. Výberový výsledok | B55: =IFERROR(LARGE(B51:B54,1),0) -> 34 | C55: =IFERROR(LARGE(C51:C54,1),0) -> 9 | D55: 39 | E55: 14 | F55: 0 | G55: 0 | H55: 0 | I55: 0 | J55: 0 | K55: 0 | L55: 0 | M55: 0
A56: 2. Výberový výsledok | B56: =IFERROR(LARGE(B51:B54,2),0) -> 19 | C56: =IFERROR(LARGE(C51:C54,2),0) -> 8 | D56: 0 | E56: 0 | F56: 0 | G56: 0 | H56: 0 | I56: 0 | J56: 0 | K56: 0 | L56: 0 | M56: 0
A57: Výsledok | B57: =SUM(B55:B56) -> 53 | C57: =SUM(C55:C56) -> 17 | D57: =SUM(D55:D56) -> 39 | E57: 14 | F57: 0 | G57: 0 | H57: 0 | I57: 0 | J57: 0 | K57: 0 | L57: 0 | M57: 0
Q63: Finálne Výsledky | X63: výsledky za kolo 1. | AE63: výsledky za kolo 2. | AL63: výsledky za kolo 3. | AS63: výsledky za kolo 4. | AZ63: výsledky za kolo 5. | BG63: výsledky za kolo 6.
Q64: Netto | T64: Brutto | X64: Netto | AA64: Brutto | AE64: Netto | AH64: Brutto | AL64: Netto | AO64: Brutto | AS64: Netto | AV64: Brutto | AZ64: Netto | BC64: Brutto | BG64: Netto | BJ64: Brutto
Q65: Poradie | R65: Tým | S65: Body | T65: Poradie | U65: Tým | V65: Body | X65: Poradie | Y65: Tým | Z65: Body | AA65: Poradie | AB65: Tým | AC65: Body | AE65: Poradie | AF65: Tým | AG65: Body | AH65: Poradie | AI65: Tým | AJ65: Body | AL65: Poradie | AM65: Tým | AN65: Body | AO65: Poradie | AP65: Tým | AQ65: Body | AS65: Poradie | AT65: Tým | AU65: Body | AV65: Poradie | AW65: Tým | AX65: Body | AZ65: Poradie | BA65: Tým | BB65: Body | BC65: Poradie | BD65: Tým | BE65: Body | BG65: Poradie | BH65: Tým | BI65: Body | BJ65: Poradie | BK65: Tým | BL65: Body
Q66: 1 | R66: =IFERROR(VLOOKUP(Q66,Q$79:S$84,2,FALSE),VLOOKUP(Q66,Q$79:S$84,2,TRUE)) -> Four Trade/Predium | S66: =IFERROR(VLOOKUP(R66,R$79:T$84,2,FALSE),VLOOKUP(R66,R$79:T$84,2,TRUE)) -> 271 | T66: 1 | U66: =IFERROR(VLOOKUP(T66,T$79:V$84,2,FALSE),VLOOKUP(T66,T$79:V$84,2,TRUE)) -> Reflex SK | V66: =IFERROR(VLOOKUP(U66,U$79:W$84,2,FALSE),VLOOKUP(U66,U$79:W$84,2,TRUE)) -> 190 | X66: 1 | Y66: =IFERROR(VLOOKUP(X66,X$79:Z$84,2,FALSE),VLOOKUP(X66,X$79:Z$84,2,TRUE)) -> Four Trade/Predium | Z66: =IFERROR(VLOOKUP(Y66,Y$79:AA$84,2,FALSE),VLOOKUP(Y66,Y$79:AA$84,2,TRUE)) -> 71 | AA66: 1 | AB66: =IFERROR(VLOOKUP(AA66,AA$79:AC$84,2,FALSE),VLOOKUP(AA66,AA$79:AC$84,2,TRUE)) -> Reflex SK | AC66: =IFERROR(VLOOKUP(AB66,AB$79:AD$84,2,FALSE),VLOOKUP(AB66,AB$79:AD$84,2,TRUE)) -> 46 | AE66: 1 | AF66: =IFERROR(VLOOKUP(AE66,AE$79:AG$84,2,FALSE),VLOOKUP(AE66,AE$79:AG$84,2,TRUE)) -> Four Trade/Predium | AG66: =IFERROR(VLOOKUP(AF66,AF$79:AH$84,2,FALSE),VLOOKUP(AF66,AF$79:AH$84,2,TRUE)) -> 73 | AH66: 1 | AI66: =IFERROR(VLOOKUP(AH66,AH$79:AJ$84,2,FALSE),VLOOKUP(AH66,AH$79:AJ$84,2,TRUE)) -> Reflex SK | AJ66: =IFERROR(VLOOKUP(AI66,AI$79:AK$84,2,FALSE),VLOOKUP(AI66,AI$79:AK$84,2,TRUE)) -> 47 | AL66: 1 | AM66: =IFERROR(VLOOKUP(AL66,AL$79:AN$84,2,FALSE),VLOOKUP(AL66,AL$79:AN$84,2,TRUE)) -> DKC | AN66: =IFERROR(VLOOKUP(AM66,AM$79:AO$84,2,FALSE),VLOOKUP(AM66,AM$79:AO$84,2,TRUE)) -> 71 | AO66: 1 | AP66: =IFERROR(VLOOKUP(AO66,AO$79:AQ$84,2,FALSE),VLOOKUP(AO66,AO$79:AQ$84,2,TRUE)) -> Reflex SK | AQ66: =IFERROR(VLOOKUP(AP66,AP$79:AR$84,2,FALSE),VLOOKUP(AP66,AP$79:AR$84,2,TRUE)) -> 47 | AS66: 1 | AT66: =IFERROR(VLOOKUP(AS66,AS$79:AU$84,2,FALSE),VLOOKUP(AS66,AS$79:AU$84,2,TRUE)) -> DKC | AU66: =IFERROR(VLOOKUP(AT66,AT$79:AV$84,2,FALSE),VLOOKUP(AT66,AT$79:AV$84,2,TRUE)) -> 70 | AV66: 1 | AW66: =IFERROR(VLOOKUP(AV66,AV$79:AX$84,2,FALSE),VLOOKUP(AV66,AV$79:AX$84,2,TRUE)) -> Reflex SK | AX66: =IFERROR(VLOOKUP(AW66,AW$79:AY$84,2,FALSE),VLOOKUP(AW66,AW$79:AY$84,2,TRUE)) -> 50 | AZ66: 1 | BA66: =IFERROR(VLOOKUP(AZ66,AZ$79:BB$84,2,FALSE),VLOOKUP(AZ66,AZ$79:BB$84,2,TRUE)) -> DKC | BB66: =IFERROR(VLOOKUP(BA66,BA$79:BC$84,2,FALSE),VLOOKUP(BA66,BA$79:BC$84,2,TRUE)) -> 0 | BC66: 1 | BD66: =IFERROR(VLOOKUP(BC66,BC$79:BE$84,2,FALSE),VLOOKUP(BC66,BC$79:BE$84,2,TRUE)) -> DKC | BE66: =IFERROR(VLOOKUP(BD66,BD$79:BF$84,2,FALSE),VLOOKUP(BD66,BD$79:BF$84,2,TRUE)) -> 0 | BG66: 1 | BH66: =IFERROR(VLOOKUP(BG66,BG$79:BI$84,2,FALSE),VLOOKUP(BG66,BG$79:BI$84,2,TRUE)) -> DKC | BI66: =IFERROR(VLOOKUP(BH66,BH$79:BJ$84,2,FALSE),VLOOKUP(BH66,BH$79:BJ$84,2,TRUE)) -> 0 | BJ66: 1 | BK66: =IFERROR(VLOOKUP(BJ66,BJ$79:BL$84,2,FALSE),VLOOKUP(BJ66,BJ$79:BL$84,2,TRUE)) -> DKC | BL66: =IFERROR(VLOOKUP(BK66,BK$79:BM$84,2,FALSE),VLOOKUP(BK66,BK$79:BM$84,2,TRUE)) -> 0
Q67: 2 | R67: =IFERROR(VLOOKUP(Q67,Q$79:S$84,2,FALSE),VLOOKUP(Q67,Q$79:S$84,2,TRUE)) -> DKC | S67: 266 | T67: 2 | U67: =IFERROR(VLOOKUP(T67,T$79:V$84,2,FALSE),VLOOKUP(T67,T$79:V$84,2,TRUE)) -> BMM | V67: 151 | X67: 2 | Y67: =IFERROR(VLOOKUP(X67,X$79:Z$84,2,FALSE),VLOOKUP(X67,X$79:Z$84,2,TRUE)) -> DKC | Z67: 66 | AA67: 2 | AB67: =IFERROR(VLOOKUP(AA67,AA$79:AC$84,2,FALSE),VLOOKUP(AA67,AA$79:AC$84,2,TRUE)) -> Four Trade/Predium | AC67: 35 | AE67: 2 | AF67: =IFERROR(VLOOKUP(AE67,AE$79:AG$84,2,FALSE),VLOOKUP(AE67,AE$79:AG$84,2,TRUE)) -> Reflex SK | AG67: 70 | AH67: 2 | AI67: =IFERROR(VLOOKUP(AH67,AH$79:AJ$84,2,FALSE),VLOOKUP(AH67,AH$79:AJ$84,2,TRUE)) -> BMM | AJ67: 37 | AL67: 2 | AM67: =IFERROR(VLOOKUP(AL67,AL$79:AN$84,2,FALSE),VLOOKUP(AL67,AL$79:AN$84,2,TRUE)) -> Reflex SK | AN67: 62 | AO67: 2 | AP67: =IFERROR(VLOOKUP(AO67,AO$79:AQ$84,2,FALSE),VLOOKUP(AO67,AO$79:AQ$84,2,TRUE)) -> BMM | AQ67: 43 | AS67: 2 | AT67: =IFERROR(VLOOKUP(AS67,AS$79:AU$84,2,FALSE),VLOOKUP(AS67,AS$79:AU$84,2,TRUE)) -> Four Trade/Predium | AU67: 67 | AV67: 2 | AW67: =IFERROR(VLOOKUP(AV67,AV$79:AX$84,2,FALSE),VLOOKUP(AV67,AV$79:AX$84,2,TRUE)) -> DKC | AX67: 41 | AZ67: 2 | BA67: =IFERROR(VLOOKUP(AZ67,AZ$79:BB$84,2,FALSE),VLOOKUP(AZ67,AZ$79:BB$84,2,TRUE)) -> Reflex SK | BB67: 0 | BC67: 2 | BD67: =IFERROR(VLOOKUP(BC67,BC$79:BE$84,2,FALSE),VLOOKUP(BC67,BC$79:BE$84,2,TRUE)) -> Reflex SK | BE67: 0 | BG67: 2 | BH67: =IFERROR(VLOOKUP(BG67,BG$79:BI$84,2,FALSE),VLOOKUP(BG67,BG$79:BI$84,2,TRUE)) -> Reflex SK | BI67: 0 | BJ67: 2 | BK67: =IFERROR(VLOOKUP(BJ67,BJ$79:BL$84,2,FALSE),VLOOKUP(BJ67,BJ$79:BL$84,2,TRUE)) -> Reflex SK | BL67: 0
Q68: 3 | R68: =IFERROR(VLOOKUP(Q68,Q$79:S$84,2,FALSE),VLOOKUP(Q68,Q$79:S$84,2,TRUE)) -> Reflex SK | S68: 259 | T68: 3 | U68: =IFERROR(VLOOKUP(T68,T$79:V$84,2,FALSE),VLOOKUP(T68,T$79:V$84,2,TRUE)) -> Four Trade/Predium | V68: 141 | X68: 3 | Y68: =IFERROR(VLOOKUP(X68,X$79:Z$84,2,FALSE),VLOOKUP(X68,X$79:Z$84,2,TRUE)) -> Reflex SK | Z68: 63 | AA68: 3 | AB68: =IFERROR(VLOOKUP(AA68,AA$79:AC$84,2,FALSE),VLOOKUP(AA68,AA$79:AC$84,2,TRUE)) -> DKC | AC68: 31 | AE68: 3 | AF68: =IFERROR(VLOOKUP(AE68,AE$79:AG$84,2,FALSE),VLOOKUP(AE68,AE$79:AG$84,2,TRUE)) -> Tatramat | AG68: 63 | AH68: 3 | AI68: =IFERROR(VLOOKUP(AH68,AH$79:AJ$84,2,FALSE),VLOOKUP(AH68,AH$79:AJ$84,2,TRUE)) -> Four Trade/Predium | AJ68: 35 | AL68: 3 | AM68: =IFERROR(VLOOKUP(AL68,AL$79:AN$84,2,FALSE),VLOOKUP(AL68,AL$79:AN$84,2,TRUE)) -> BMM | AN68: 61 | AO68: 3 | AP68: =IFERROR(VLOOKUP(AO68,AO$79:AQ$84,2,FALSE),VLOOKUP(AO68,AO$79:AQ$84,2,TRUE)) -> DKC | AQ68: 41 | AS68: 3 | AT68: =IFERROR(VLOOKUP(AS68,AS$79:AU$84,2,FALSE),VLOOKUP(AS68,AS$79:AU$84,2,TRUE)) -> Reflex SK | AU68: 64 | AV68: 3 | AW68: =IFERROR(VLOOKUP(AV68,AV$79:AX$84,2,FALSE),VLOOKUP(AV68,AV$79:AX$84,2,TRUE)) -> BMM | AX68: 41 | AZ68: 3 | BA68: =IFERROR(VLOOKUP(AZ68,AZ$79:BB$84,2,FALSE),VLOOKUP(AZ68,AZ$79:BB$84,2,TRUE)) -> BMM | BB68: 0 | BC68: 3 | BD68: =IFERROR(VLOOKUP(BC68,BC$79:BE$84,2,FALSE),VLOOKUP(BC68,BC$79:BE$84,2,TRUE)) -> BMM | BE68: 0 | BG68: 3 | BH68: =IFERROR(VLOOKUP(BG68,BG$79:BI$84,2,FALSE),VLOOKUP(BG68,BG$79:BI$84,2,TRUE)) -> BMM | BI68: 0 | BJ68: 3 | BK68: =IFERROR(VLOOKUP(BJ68,BJ$79:BL$84,2,FALSE),VLOOKUP(BJ68,BJ$79:BL$84,2,TRUE)) -> BMM | BL68: 0
Q69: 4 | R69: =IFERROR(VLOOKUP(Q69,Q$79:S$84,2,FALSE),VLOOKUP(Q69,Q$79:S$84,2,TRUE)) -> Tatramat | S69: 242 | T69: 4 | U69: =IFERROR(VLOOKUP(T69,T$79:V$84,2,FALSE),VLOOKUP(T69,T$79:V$84,2,TRUE)) -> DKC | V69: 137 | X69: 4 | Y69: =IFERROR(VLOOKUP(X69,X$79:Z$84,2,FALSE),VLOOKUP(X69,X$79:Z$84,2,TRUE)) -> Tatramat | Z69: 58 | AA69: 4 | AB69: =IFERROR(VLOOKUP(AA69,AA$79:AC$84,2,FALSE),VLOOKUP(AA69,AA$79:AC$84,2,TRUE)) -> BMM | AC69: 30 | AE69: 4 | AF69: =IFERROR(VLOOKUP(AE69,AE$79:AG$84,2,FALSE),VLOOKUP(AE69,AE$79:AG$84,2,TRUE)) -> BMM | AG69: 60 | AH69: 4 | AI69: =IFERROR(VLOOKUP(AH69,AH$79:AJ$84,2,FALSE),VLOOKUP(AH69,AH$79:AJ$84,2,TRUE)) -> Tatramat | AJ69: 28 | AL69: 4 | AM69: =IFERROR(VLOOKUP(AL69,AL$79:AN$84,2,FALSE),VLOOKUP(AL69,AL$79:AN$84,2,TRUE)) -> Tatramat | AN69: 60 | AO69: 4 | AP69: =IFERROR(VLOOKUP(AO69,AO$79:AQ$84,2,FALSE),VLOOKUP(AO69,AO$79:AQ$84,2,TRUE)) -> Tatramat | AQ69: 37 | AS69: 4 | AT69: =IFERROR(VLOOKUP(AS69,AS$79:AU$84,2,FALSE),VLOOKUP(AS69,AS$79:AU$84,2,TRUE)) -> BMM | AU69: 61 | AV69: 4 | AW69: =IFERROR(VLOOKUP(AV69,AV$79:AX$84,2,FALSE),VLOOKUP(AV69,AV$79:AX$84,2,TRUE)) -> Four Trade/Predium | AX69: 40 | AZ69: 4 | BA69: =IFERROR(VLOOKUP(AZ69,AZ$79:BB$84,2,FALSE),VLOOKUP(AZ69,AZ$79:BB$84,2,TRUE)) -> Tatramat | BB69: 0 | BC69: 4 | BD69: =IFERROR(VLOOKUP(BC69,BC$79:BE$84,2,FALSE),VLOOKUP(BC69,BC$79:BE$84,2,TRUE)) -> Tatramat | BE69: 0 | BG69: 4 | BH69: =IFERROR(VLOOKUP(BG69,BG$79:BI$84,2,FALSE),VLOOKUP(BG69,BG$79:BI$84,2,TRUE)) -> Tatramat | BI69: 0 | BJ69: 4 | BK69: =IFERROR(VLOOKUP(BJ69,BJ$79:BL$84,2,FALSE),VLOOKUP(BJ69,BJ$79:BL$84,2,TRUE)) -> Tatramat | BL69: 0
Q70: 5 | R70: =IFERROR(VLOOKUP(Q70,Q$79:S$84,2,FALSE),VLOOKUP(Q70,Q$79:S$84,2,TRUE)) -> BMM | S70: 239 | T70: 5 | U70: =IFERROR(VLOOKUP(T70,T$79:V$84,2,FALSE),VLOOKUP(T70,T$79:V$84,2,TRUE)) -> Tatramat | V70: 129 | X70: 5 | Y70: =IFERROR(VLOOKUP(X70,X$79:Z$84,2,FALSE),VLOOKUP(X70,X$79:Z$84,2,TRUE)) -> BMM | Z70: 57 | AA70: 5 | AB70: =IFERROR(VLOOKUP(AA70,AA$79:AC$84,2,FALSE),VLOOKUP(AA70,AA$79:AC$84,2,TRUE)) -> Tatramat | AC70: 26 | AE70: 5 | AF70: =IFERROR(VLOOKUP(AE70,AE$79:AG$84,2,FALSE),VLOOKUP(AE70,AE$79:AG$84,2,TRUE)) -> DKC | AG70: 59 | AH70: 5 | AI70: =IFERROR(VLOOKUP(AH70,AH$79:AJ$84,2,FALSE),VLOOKUP(AH70,AH$79:AJ$84,2,TRUE)) -> DKC | AJ70: 24 | AL70: 5 | AM70: =IFERROR(VLOOKUP(AL70,AL$79:AN$84,2,FALSE),VLOOKUP(AL70,AL$79:AN$84,2,TRUE)) -> Four Trade/Predium | AN70: 60 | AO70: 5 | AP70: =IFERROR(VLOOKUP(AO70,AO$79:AQ$84,2,FALSE),VLOOKUP(AO70,AO$79:AQ$84,2,TRUE)) -> Four Trade/Predium | AQ70: 31 | AS70: 5 | AT70: =IFERROR(VLOOKUP(AS70,AS$79:AU$84,2,FALSE),VLOOKUP(AS70,AS$79:AU$84,2,TRUE)) -> Tatramat | AU70: 61 | AV70: 5 | AW70: =IFERROR(VLOOKUP(AV70,AV$79:AX$84,2,FALSE),VLOOKUP(AV70,AV$79:AX$84,2,TRUE)) -> Tatramat | AX70: 38 | AZ70: 5 | BA70: =IFERROR(VLOOKUP(AZ70,AZ$79:BB$84,2,FALSE),VLOOKUP(AZ70,AZ$79:BB$84,2,TRUE)) -> Four Trade/Predium | BB70: 0 | BC70: 5 | BD70: =IFERROR(VLOOKUP(BC70,BC$79:BE$84,2,FALSE),VLOOKUP(BC70,BC$79:BE$84,2,TRUE)) -> Four Trade/Predium | BE70: 0 | BG70: 5 | BH70: =IFERROR(VLOOKUP(BG70,BG$79:BI$84,2,FALSE),VLOOKUP(BG70,BG$79:BI$84,2,TRUE)) -> Four Trade/Predium | BI70: 0 | BJ70: 5 | BK70: =IFERROR(VLOOKUP(BJ70,BJ$79:BL$84,2,FALSE),VLOOKUP(BJ70,BJ$79:BL$84,2,TRUE)) -> Four Trade/Predium | BL70: 0
Q71: 6 | R71: =IFERROR(VLOOKUP(Q71,Q$79:S$84,2,FALSE),VLOOKUP(Q71,Q$79:S$84,2,TRUE)) -> Sotogrande | S71: 92 | T71: 6 | U71: =IFERROR(VLOOKUP(T71,T$79:V$84,2,FALSE),VLOOKUP(T71,T$79:V$84,2,TRUE)) -> Sotogrande | V71: 31 | X71: 6 | Y71: =IFERROR(VLOOKUP(X71,X$79:Z$84,2,FALSE),VLOOKUP(X71,X$79:Z$84,2,TRUE)) -> Sotogrande | Z71: 53 | AA71: 6 | AB71: =IFERROR(VLOOKUP(AA71,AA$79:AC$84,2,FALSE),VLOOKUP(AA71,AA$79:AC$84,2,TRUE)) -> Sotogrande | AC71: 17 | AE71: 6 | AF71: =IFERROR(VLOOKUP(AE71,AE$79:AG$84,2,FALSE),VLOOKUP(AE71,AE$79:AG$84,2,TRUE)) -> Sotogrande | AG71: 39 | AH71: 6 | AI71: =IFERROR(VLOOKUP(AH71,AH$79:AJ$84,2,FALSE),VLOOKUP(AH71,AH$79:AJ$84,2,TRUE)) -> Sotogrande | AJ71: 14 | AL71: 6 | AM71: =IFERROR(VLOOKUP(AL71,AL$79:AN$84,2,FALSE),VLOOKUP(AL71,AL$79:AN$84,2,TRUE)) -> Sotogrande | AN71: 0 | AO71: 6 | AP71: =IFERROR(VLOOKUP(AO71,AO$79:AQ$84,2,FALSE),VLOOKUP(AO71,AO$79:AQ$84,2,TRUE)) -> Sotogrande | AQ71: 0 | AS71: 6 | AT71: =IFERROR(VLOOKUP(AS71,AS$79:AU$84,2,FALSE),VLOOKUP(AS71,AS$79:AU$84,2,TRUE)) -> Sotogrande | AU71: 0 | AV71: 6 | AW71: =IFERROR(VLOOKUP(AV71,AV$79:AX$84,2,FALSE),VLOOKUP(AV71,AV$79:AX$84,2,TRUE)) -> Sotogrande | AX71: 0 | AZ71: 6 | BA71: =IFERROR(VLOOKUP(AZ71,AZ$79:BB$84,2,FALSE),VLOOKUP(AZ71,AZ$79:BB$84,2,TRUE)) -> Sotogrande | BB71: 0 | BC71: 6 | BD71: =IFERROR(VLOOKUP(BC71,BC$79:BE$84,2,FALSE),VLOOKUP(BC71,BC$79:BE$84,2,TRUE)) -> Sotogrande | BE71: 0 | BG71: 6 | BH71: =IFERROR(VLOOKUP(BG71,BG$79:BI$84,2,FALSE),VLOOKUP(BG71,BG$79:BI$84,2,TRUE)) -> Sotogrande | BI71: 0 | BJ71: 6 | BK71: =IFERROR(VLOOKUP(BJ71,BJ$79:BL$84,2,FALSE),VLOOKUP(BJ71,BJ$79:BL$84,2,TRUE)) -> Sotogrande | BL71: 0
Q77: Netto | T77: Brutto | X77: Netto | AA77: Brutto | AE77: Netto | AH77: Brutto | AL77: Netto | AO77: Brutto | AS77: Netto | AV77: Brutto | AZ77: Netto | BC77: Brutto | BG77: Netto | BJ77: Brutto
Q78: Poradie | R78: Tým | S78: Body | T78: Poradie | U78: Tým | V78: Body | X78: Poradie | Y78: Tým | Z78: Body | AA78: Poradie | AB78: Tým | AC78: Body | AE78: Poradie | AF78: Tým | AG78: Body | AH78: Poradie | AI78: Tým | AJ78: Body | AL78: Poradie | AM78: Tým | AN78: Body | AO78: Poradie | AP78: Tým | AQ78: Body | AS78: Poradie | AT78: Tým | AU78: Body | AV78: Poradie | AW78: Tým | AX78: Body | AZ78: Poradie | BA78: Tým | BB78: Body | BC78: Poradie | BD78: Tým | BE78: Body | BG78: Poradie | BH78: Tým | BI78: Body | BJ78: Poradie | BK78: Tým | BL78: Body
Q79: =RANK(S79,S$79:S$84)+COUNTIF(S$79:S79,S79)-1 -> 2 | R79: DKC | S79: =SUM(B12,D12,F12,H12,J12,L12) -> 266 | T79: =RANK(V79,V$79:V$84)+COUNTIF(V$79:V79,V79)-1 -> 4 | U79: DKC | V79: =C12+E12+G12+I12+K12+M12 -> 137 | X79: =RANK(Z79,Z$79:Z$84)+COUNTIF(Z$79:Z79,Z79)-1 -> 2 | Y79: DKC | Z79: =B12 -> 66 | AA79: =RANK(AC79,AC$79:AC$84)+COUNTIF(AC$79:AC79,AC79)-1 -> 3 | AB79: DKC | AC79: =C12 -> 31 | AE79: =RANK(AG79,AG$79:AG$84)+COUNTIF(AG$79:AG79,AG79)-1 -> 5 | AF79: DKC | AG79: =D12 -> 59 | AH79: =RANK(AJ79,AJ$79:AJ$84)+COUNTIF(AJ$79:AJ79,AJ79)-1 -> 5 | AI79: DKC | AJ79: =E12 -> 24 | AL79: =RANK(AN79,AN$79:AN$84)+COUNTIF(AN$79:AN79,AN79)-1 -> 1 | AM79: DKC | AN79: =F12 -> 71 | AO79: =RANK(AQ79,AQ$79:AQ$84)+COUNTIF(AQ$79:AQ79,AQ79)-1 -> 3 | AP79: DKC | AQ79: =G12 -> 41 | AS79: =RANK(AU79,AU$79:AU$84)+COUNTIF(AU$79:AU79,AU79)-1 -> 1 | AT79: DKC | AU79: =H12 -> 70 | AV79: =RANK(AX79,AX$79:AX$84)+COUNTIF(AX$79:AX79,AX79)-1 -> 2 | AW79: DKC | AX79: =I12 -> 41 | AZ79: =RANK(BB79,BB$79:BB$84)+COUNTIF(BB$79:BB79,BB79)-1 -> 1 | BA79: DKC | BB79: =J12 -> 0 | BC79: =RANK(BE79,BE$79:BE$84)+COUNTIF(BE$79:BE79,BE79)-1 -> 1 | BD79: DKC | BE79: =K12 -> 0 | BG79: =RANK(BI79,BI$79:BI$84)+COUNTIF(BI$79:BI79,BI79)-1 -> 1 | BH79: DKC | BI79: =L12 -> 0 | BJ79: =RANK(BL79,BL$79:BL$84)+COUNTIF(BL$79:BL79,BL79)-1 -> 1 | BK79: DKC | BL79: =M12 -> 0
Q80: =RANK(S80,S$79:S$84)+COUNTIF(S$79:S80,S80)-1 -> 3 | R80: Reflex SK | S80: =B21+D21+F21+H21+J21+L21 -> 259 | T80: =RANK(V80,V$79:V$84)+COUNTIF(V$79:V80,V80)-1 -> 1 | U80: Reflex SK | V80: =C21+E21+G21+I21+K21+M21 -> 190 | X80: =RANK(Z80,Z$79:Z$84)+COUNTIF(Z$79:Z80,Z80)-1 -> 3 | Y80: Reflex SK | Z80: =B21 -> 63 | AA80: =RANK(AC80,AC$79:AC$84)+COUNTIF(AC$79:AC80,AC80)-1 -> 1 | AB80: Reflex SK | AC80: =C21 -> 46 | AE80: =RANK(AG80,AG$79:AG$84)+COUNTIF(AG$79:AG80,AG80)-1 -> 2 | AF80: Reflex SK | AG80: =D21 -> 70 | AH80: =RANK(AJ80,AJ$79:AJ$84)+COUNTIF(AJ$79:AJ80,AJ80)-1 -> 1 | AI80: Reflex SK | AJ80: =E21 -> 47 | AL80: =RANK(AN80,AN$79:AN$84)+COUNTIF(AN$79:AN80,AN80)-1 -> 2 | AM80: Reflex SK | AN80: =F21 -> 62 | AO80: =RANK(AQ80,AQ$79:AQ$84)+COUNTIF(AQ$79:AQ80,AQ80)-1 -> 1 | AP80: Reflex SK | AQ80: =G21 -> 47 | AS80: =RANK(AU80,AU$79:AU$84)+COUNTIF(AU$79:AU80,AU80)-1 -> 3 | AT80: Reflex SK | AU80: =H21 -> 64 | AV80: =RANK(AX80,AX$79:AX$84)+COUNTIF(AX$79:AX80,AX80)-1 -> 1 | AW80: Reflex SK | AX80: =I21 -> 50 | AZ80: =RANK(BB80,BB$79:BB$84)+COUNTIF(BB$79:BB80,BB80)-1 -> 2 | BA80: Reflex SK | BB80: =J21 -> 0 | BC80: =RANK(BE80,BE$79:BE$84)+COUNTIF(BE$79:BE80,BE80)-1 -> 2 | BD80: Reflex SK | BE80: =K21 -> 0 | BG80: =RANK(BI80,BI$79:BI$84)+COUNTIF(BI$79:BI80,BI80)-1 -> 2 | BH80: Reflex SK | BI80: =L21 -> 0 | BJ80: =RANK(BL80,BL$79:BL$84)+COUNTIF(BL$79:BL80,BL80)-1 -> 2 | BK80: Reflex SK | BL80: =M21 -> 0
Q81: =RANK(S81,S$79:S$84)+COUNTIF(S$79:S81,S81)-1 -> 5 | R81: BMM | S81: =B30+D30+F30+H30+J30+L30 -> 239 | T81: =RANK(V81,V$79:V$84)+COUNTIF(V$79:V81,V81)-1 -> 2 | U81: BMM | V81: =C30+E30+G30+I30+K30+M30 -> 151 | X81: =RANK(Z81,Z$79:Z$84)+COUNTIF(Z$79:Z81,Z81)-1 -> 5 | Y81: BMM | Z81: =B30 -> 57 | AA81: =RANK(AC81,AC$79:AC$84)+COUNTIF(AC$79:AC81,AC81)-1 -> 4 | AB81: BMM | AC81: =C30 -> 30 | AE81: =RANK(AG81,AG$79:AG$84)+COUNTIF(AG$79:AG81,AG81)-1 -> 4 | AF81: BMM | AG81: =D30 -> 60 | AH81: =RANK(AJ81,AJ$79:AJ$84)+COUNTIF(AJ$79:AJ81,AJ81)-1 -> 2 | AI81: BMM | AJ81: =E30 -> 37 | AL81: =RANK(AN81,AN$79:AN$84)+COUNTIF(AN$79:AN81,AN81)-1 -> 3 | AM81: BMM | AN81: =F30 -> 61 | AO81: =RANK(AQ81,AQ$79:AQ$84)+COUNTIF(AQ$79:AQ81,AQ81)-1 -> 2 | AP81: BMM | AQ81: =G30 -> 43 | AS81: =RANK(AU81,AU$79:AU$84)+COUNTIF(AU$79:AU81,AU81)-1 -> 4 | AT81: BMM | AU81: =H30 -> 61 | AV81: =RANK(AX81,AX$79:AX$84)+COUNTIF(AX$79:AX81,AX81)-1 -> 3 | AW81: BMM | AX81: =I30 -> 41 | AZ81: =RANK(BB81,BB$79:BB$84)+COUNTIF(BB$79:BB81,BB81)-1 -> 3 | BA81: BMM | BB81: =J30 -> 0 | BC81: =RANK(BE81,BE$79:BE$84)+COUNTIF(BE$79:BE81,BE81)-1 -> 3 | BD81: BMM | BE81: =K30 -> 0 | BG81: =RANK(BI81,BI$79:BI$84)+COUNTIF(BI$79:BI81,BI81)-1 -> 3 | BH81: BMM | BI81: =L30 -> 0 | BJ81: =RANK(BL81,BL$79:BL$84)+COUNTIF(BL$79:BL81,BL81)-1 -> 3 | BK81: BMM | BL81: =M30 -> 0
Q82: =RANK(S82,S$79:S$84)+COUNTIF(S$79:S82,S82)-1 -> 4 | R82: Tatramat | S82: =B39+D39+F39+H39+J39+L39 -> 242 | T82: =RANK(V82,V$79:V$84)+COUNTIF(V$79:V82,V82)-1 -> 5 | U82: Tatramat | V82: =C39+E39+G39+I39+K39+M39 -> 129 | X82: =RANK(Z82,Z$79:Z$84)+COUNTIF(Z$79:Z82,Z82)-1 -> 4 | Y82: Tatramat | Z82: =B39 -> 58 | AA82: =RANK(AC82,AC$79:AC$84)+COUNTIF(AC$79:AC82,AC82)-1 -> 5 | AB82: Tatramat | AC82: =C39 -> 26 | AE82: =RANK(AG82,AG$79:AG$84)+COUNTIF(AG$79:AG82,AG82)-1 -> 3 | AF82: Tatramat | AG82: =D39 -> 63 | AH82: =RANK(AJ82,AJ$79:AJ$84)+COUNTIF(AJ$79:AJ82,AJ82)-1 -> 4 | AI82: Tatramat | AJ82: =E39 -> 28 | AL82: =RANK(AN82,AN$79:AN$84)+COUNTIF(AN$79:AN82,AN82)-1 -> 4 | AM82: Tatramat | AN82: =F39 -> 60 | AO82: =RANK(AQ82,AQ$79:AQ$84)+COUNTIF(AQ$79:AQ82,AQ82)-1 -> 4 | AP82: Tatramat | AQ82: =G39 -> 37 | AS82: =RANK(AU82,AU$79:AU$84)+COUNTIF(AU$79:AU82,AU82)-1 -> 5 | AT82: Tatramat | AU82: =H39 -> 61 | AV82: =RANK(AX82,AX$79:AX$84)+COUNTIF(AX$79:AX82,AX82)-1 -> 5 | AW82: Tatramat | AX82: =I39 -> 38 | AZ82: =RANK(BB82,BB$79:BB$84)+COUNTIF(BB$79:BB82,BB82)-1 -> 4 | BA82: Tatramat | BB82: =J39 -> 0 | BC82: =RANK(BE82,BE$79:BE$84)+COUNTIF(BE$79:BE82,BE82)-1 -> 4 | BD82: Tatramat | BE82: =K39 -> 0 | BG82: =RANK(BI82,BI$79:BI$84)+COUNTIF(BI$79:BI82,BI82)-1 -> 4 | BH82: Tatramat | BI82: =L39 -> 0 | BJ82: =RANK(BL82,BL$79:BL$84)+COUNTIF(BL$79:BL82,BL82)-1 -> 4 | BK82: Tatramat | BL82: =M39 -> 0
Q83: =RANK(S83,S$79:S$84)+COUNTIF(S$79:S83,S83)-1 -> 1 | R83: Four Trade/Predium | S83: =B48+D48+F48+H48+J48+L48 -> 271 | T83: =RANK(V83,V$79:V$84)+COUNTIF(V$79:V83,V83)-1 -> 3 | U83: Four Trade/Predium | V83: =C48+E48+G48+I48+K48+M48 -> 141 | X83: =RANK(Z83,Z$79:Z$84)+COUNTIF(Z$79:Z83,Z83)-1 -> 1 | Y83: Four Trade/Predium | Z83: =B48 -> 71 | AA83: =RANK(AC83,AC$79:AC$84)+COUNTIF(AC$79:AC83,AC83)-1 -> 2 | AB83: Four Trade/Predium | AC83: =C48 -> 35 | AE83: =RANK(AG83,AG$79:AG$84)+COUNTIF(AG$79:AG83,AG83)-1 -> 1 | AF83: Four Trade/Predium | AG83: =D48 -> 73 | AH83: =RANK(AJ83,AJ$79:AJ$84)+COUNTIF(AJ$79:AJ83,AJ83)-1 -> 3 | AI83: Four Trade/Predium | AJ83: =E48 -> 35 | AL83: =RANK(AN83,AN$79:AN$84)+COUNTIF(AN$79:AN83,AN83)-1 -> 5 | AM83: Four Trade/Predium | AN83: =F48 -> 60 | AO83: =RANK(AQ83,AQ$79:AQ$84)+COUNTIF(AQ$79:AQ83,AQ83)-1 -> 5 | AP83: Four Trade/Predium | AQ83: =G48 -> 31 | AS83: =RANK(AU83,AU$79:AU$84)+COUNTIF(AU$79:AU83,AU83)-1 -> 2 | AT83: Four Trade/Predium | AU83: =H48 -> 67 | AV83: =RANK(AX83,AX$79:AX$84)+COUNTIF(AX$79:AX83,AX83)-1 -> 4 | AW83: Four Trade/Predium | AX83: =I48 -> 40 | AZ83: =RANK(BB83,BB$79:BB$84)+COUNTIF(BB$79:BB83,BB83)-1 -> 5 | BA83: Four Trade/Predium | BB83: =J48 -> 0 | BC83: =RANK(BE83,BE$79:BE$84)+COUNTIF(BE$79:BE83,BE83)-1 -> 5 | BD83: Four Trade/Predium | BE83: =K48 -> 0 | BG83: =RANK(BI83,BI$79:BI$84)+COUNTIF(BI$79:BI83,BI83)-1 -> 5 | BH83: Four Trade/Predium | BI83: =L48 -> 0 | BJ83: =RANK(BL83,BL$79:BL$84)+COUNTIF(BL$79:BL83,BL83)-1 -> 5 | BK83: Four Trade/Predium | BL83: =M48 -> 0
Q84: =RANK(S84,S$79:S$84)+COUNTIF(S$79:S84,S84)-1 -> 6 | R84: Sotogrande | S84: =B57++D57+F57+H57+J57+L57 -> 92 | T84: =RANK(V84,V$79:V$84)+COUNTIF(V$79:V84,V84)-1 -> 6 | U84: Sotogrande | V84: =C57+E57+G57+I57+K57+M57 -> 31 | X84: =RANK(Z84,Z$79:Z$84)+COUNTIF(Z$79:Z84,Z84)-1 -> 6 | Y84: Sotogrande | Z84: =B57 -> 53 | AA84: =RANK(AC84,AC$79:AC$84)+COUNTIF(AC$79:AC84,AC84)-1 -> 6 | AB84: Sotogrande | AC84: =C57 -> 17 | AE84: =RANK(AG84,AG$79:AG$84)+COUNTIF(AG$79:AG84,AG84)-1 -> 6 | AF84: Sotogrande | AG84: =D57 -> 39 | AH84: =RANK(AJ84,AJ$79:AJ$84)+COUNTIF(AJ$79:AJ84,AJ84)-1 -> 6 | AI84: Sotogrande | AJ84: =E57 -> 14 | AL84: =RANK(AN84,AN$79:AN$84)+COUNTIF(AN$79:AN84,AN84)-1 -> 6 | AM84: Sotogrande | AN84: =F57 -> 0 | AO84: =RANK(AQ84,AQ$79:AQ$84)+COUNTIF(AQ$79:AQ84,AQ84)-1 -> 6 | AP84: Sotogrande | AQ84: =G57 -> 0 | AS84: =RANK(AU84,AU$79:AU$84)+COUNTIF(AU$79:AU84,AU84)-1 -> 6 | AT84: Sotogrande | AU84: =H57 -> 0 | AV84: =RANK(AX84,AX$79:AX$84)+COUNTIF(AX$79:AX84,AX84)-1 -> 6 | AW84: Sotogrande | AX84: =I57 -> 0 | AZ84: =RANK(BB84,BB$79:BB$84)+COUNTIF(BB$79:BB84,BB84)-1 -> 6 | BA84: Sotogrande | BB84: =J57 -> 0 | BC84: =RANK(BE84,BE$79:BE$84)+COUNTIF(BE$79:BE84,BE84)-1 -> 6 | BD84: Sotogrande | BE84: =K57 -> 0 | BG84: =RANK(BI84,BI$79:BI$84)+COUNTIF(BI$79:BI84,BI84)-1 -> 6 | BH84: Sotogrande | BI84: =L57 -> 0 | BJ84: =RANK(BL84,BL$79:BL$84)+COUNTIF(BL$79:BL84,BL84)-1 -> 6 | BK84: Sotogrande | BL84: =M57 -> 0

Sheet Firemná Liga-Západ
B3: Kolo 1. (Netto) | C3: Kolo 1. (Brutto) | D3: Kolo 2. (Netto) | E3: Kolo 2. (Brutto) | F3: Kolo 3. (Netto) | G3: Kolo 3. (Brutto) | H3: Kolo 4. (Netto) | I3: Kolo 4. (Brutto) | J3: Kolo 5. (Netto) | K3: Kolo 5. (Brutto) | L3: Kolo 6. (Netto) | M3: Kolo 6. (Brutto)
A5: Mercedes-Benz | B5: Kolo 1. (Netto) | C5: Kolo 1. (Brutto) | D5: Kolo 2. (Netto) | E5: Kolo 2. (Brutto) | F5: Kolo 3. (Netto) | G5: Kolo 3. (Brutto) | H5: Kolo 4. (Netto) | I5: Kolo 4. (Brutto) | J5: Kolo 5. (Netto) | K5: Kolo 5. (Brutto) | L5: Kolo 6. (Netto) | M5: Kolo 6. (Brutto)
A6: Peter Šindelár | B6: 38 | C6: 30 | D6: 32 | E6: 24 | F6: 40 | G6: 32 | H6: 26 | I6: 20
A7: Július Šabo | B7: 29 | C7: 10 | D7: 0 | E7: 0 | F7: 23 | G7: 12 | H7: 30 | I7: 15
A8: Ján Pečo | B8: 0 | C8: 0 | D8: 29 | E8: 13
A9: Andrej Beňo | B9: 25 | C9: 22 | D9: 31 | E9: 27 | F9: 27 | G9: 25 | H9: 32 | I9: 29
A10: 1. Výberový výsledok | B10: =IFERROR(LARGE(B6:B9,1),0) -> 38 | C10: =IFERROR(LARGE(C6:C9,1),0) -> 30 | D10: 32 | E10: 27 | F10: 40 | G10: 32 | H10: 32 | I10: 29 | J10: 0 | K10: 0 | L10: 0 | M10: 0
A11: 2. Výberový výsledok | B11: =IFERROR(LARGE(B6:B9,2),0) -> 29 | C11: =IFERROR(LARGE(C6:C9,2),0) -> 22 | D11: 31 | E11: 24 | F11: 27 | G11: 25 | H11: 30 | I11: 20 | J11: 0 | K11: 0 | L11: 0 | M11: 0
A12: Výsledok | B12: =IFERROR(SUM(B10:B11),0) -> 67 | C12: =IFERROR(SUM(C10:C11),0) -> 52 | D12: =IFERROR(SUM(D10:D11),0) -> 63 | E12: 51 | F12: 67 | G12: 57 | H12: 62 | I12: 49 | J12: 0 | K12: 0 | L12: 0 | M12: 0
A14: Otyk Invest | B14: Kolo 1. (Netto) | C14: Kolo 1. (Brutto) | D14: Kolo 2. (Netto) | E14: Kolo 2. (Brutto) | F14: Kolo 3. (Netto) | G14: Kolo 3. (Brutto) | H14: Kolo 4. (Netto) | I14: Kolo 4. (Brutto) | J14: Kolo 5. (Netto) | K14: Kolo 5. (Brutto) | L14: Kolo 6. (Netto) | M14: Kolo 6. (Brutto)
A15: Rudolf Hudec | B15: 24 | C15: 7 | D15: 21 | E15: 5 | F15: 30 | G15: 13 | H15: 23 | I15: 10
A16: Rudolf Bobok | B16: 36 | C16: 18 | D16: 29 | E16: 12 | F16: 35 | G16: 19 | H16: 27 | I16: 12
A17: Jozef Košík | B17: 33 | C17: 13 | D17: 31 | E17: 13 | F17: 29 | G17: 11 | H17: 26 | I17: 11
A18: Milan Pánik | B18: 30 | C18: 20 | D18: 40 | E18: 30 | F18: 32 | G18: 25 | H18: 32 | I18: 25
A19: 1. Výberový výsledok | B19: =IFERROR(LARGE(B15:B18,1),0) -> 36 | C19: =IFERROR(LARGE(C15:C18,1),0) -> 20 | D19: 40 | E19: 30 | F19: 35 | G19: 25 | H19: 32 | I19: 25 | J19: 0 | K19: 0 | L19: 0 | M19: 0
A20: 2. Výberový výsledok | B20: =IFERROR(LARGE(B15:B18,2),0) -> 33 | C20: =IFERROR(LARGE(C15:C18,2),0) -> 18 | D20: 31 | E20: 13 | F20: 32 | G20: 19 | H20: 27 | I20: 12 | J20: 0 | K20: 0 | L20: 0 | M20: 0
A21: Výsledok | B21: =SUM(B19:B20) -> 69 | C21: =SUM(C19:C20) -> 38 | D21: =SUM(D19:D20) -> 71 | E21: 43 | F21: 67 | G21: 44 | H21: 59 | I21: 37 | J21: 0 | K21: 0 | L21: 0 | M21: 0
A23: Favorit | B23: Kolo 1. (Netto) | C23: Kolo 1. (Brutto) | D23: Kolo 2. (Netto) | E23: Kolo 2. (Brutto) | F23: Kolo 3. (Netto) | G23: Kolo 3. (Brutto) | H23: Kolo 4. (Netto) | I23: Kolo 4. (Brutto) | J23: Kolo 5. (Netto) | K23: Kolo 5. (Brutto) | L23: Kolo 6. (Netto) | M23: Kolo 6. (Brutto)
A24: Pavol Segéň | B24: 28 | C24: 25 | D24: 33 | E24: 30 | F24: 36 | G24: 34 | H24: 34 | I24: 32
A25: Peter Kolesár | B25: 0 | C25: 0 | D25: 26 | E25: 8 | H25: 0 | I25: 0
A26: Peter Novák | B26: 31 | C26: 14 | D26: 30 | E26: 14
A27: Karol Baláž | B27: 28 | C27: 15 | D27: 33 | E27: 18 | F27: 26 | G27: 13 | H27: 32 | I27: 20
A28: 1. Výberový výsledok | B28: =IFERROR(LARGE(B24:B27,1),0) -> 31 | C28: =IFERROR(LARGE(C24:C27,1),0) -> 25 | D28: 33 | E28: 30 | F28: 36 | G28: 34 | H28: 34 | I28: 32 | J28: 0 | K28: 0 | L28: 0 | M28: 0
A29: 2. Výberový výsledok | B29: =IFERROR(LARGE(B24:B27,2),0) -> 28 | C29: =IFERROR(LARGE(C24:C27,2),0) -> 15 | D29: 33 | E29: 18 | F29: 26 | G29: 13 | H29: 32 | I29: 20 | J29: 0 | K29: 0 | L29: 0 | M29: 0
A30: Výsledok | B30: =SUM(B28:B29) -> 59 | C30: =SUM(C28:C29) -> 40 | D30: 66 | E30: 48 | F30: 62 | G30: 47 | H30: 66 | I30: 52 | J30: 0 | K30: 0 | L30: 0 | M30: 0
A32: Wűstenrot | B32: Kolo 1. (Netto) | C32: Kolo 1. (Brutto) | D32: Kolo 2. (Netto) | E32: Kolo 2. (Brutto) | F32: Kolo 3. (Netto) | G32: Kolo 3. (Brutto) | H32: Kolo 4. (Netto) | I32: Kolo 4. (Brutto) | J32: Kolo 5. (Netto) | K32: Kolo 5. (Brutto) | L32: Kolo 6. (Netto) | M32: Kolo 6. (Brutto)
A33: Miroslav German | B33: 31 | C33: 22 | D33: 35 | E33: 27 | F33: 34 | G33: 26 | H33: 30 | I33: 21
A34: Valéria Germanová | B34: 27 | C34: 13 | D34: 29 | E34: 16 | F34: 29 | G34: 12 | H34: 22 | I34: 9
A35: Petra Šimková | B35: 37 | C35: 31 | D35: 36 | E35: 31 | F35: 33 | G35: 25 | H35: 35 | I35: 27
A36: Jozef Adamkov | B36: 32 | C36: 10 | D36: 0 | E36: 0 | F36: 36 | G36: 15 | H36: 27 | I36: 8
A37: 1. Výberový výsledok | B37: =IFERROR(LARGE(B33:B36,1),0) -> 37 | C37: =IFERROR(LARGE(C33:C36,1),0) -> 31 | D37: 36 | E37: 31 | F37: 36 | G37: 26 | H37: 35 | I37: 27 | J37: 0 | K37: 0 | L37: 0 | M37: 0
A38: 2. Výberový výsledok | B38: =IFERROR(LARGE(B33:B36,2),0) -> 32 | C38: =IFERROR(LARGE(C33:C36,2),0) -> 22 | D38: 35 | E38: 27 | F38: 34 | G38: 25 | H38: 30 | I38: 21 | J38: 0 | K38: 0 | L38: 0 | M38: 0
A39: Výsledok | B39: =SUM(B37:B38) -> 69 | C39: =SUM(C37:C38) -> 53 | D39: =SUM(D37:D38) -> 71 | E39: 58 | F39: 70 | G39: 51 | H39: 65 | I39: 48 | J39: 0 | K39: 0 | L39: 0 | M39: 0
A41: ŠEVT | B41: Kolo 1. (Netto) | C41: Kolo 1. (Brutto) | D41: Kolo 2. (Netto) | E41: Kolo 2. (Brutto) | F41: Kolo 3. (Netto) | G41: Kolo 3. (Brutto) | H41: Kolo 4. (Netto) | I41: Kolo 4. (Brutto) | J41: Kolo 5. (Netto) | K41: Kolo 5. (Brutto) | L41: Kolo 6. (Netto) | M41: Kolo 6. (Brutto)
A42: Jozef Kadvolt | B42: 32 | C42: 18 | D42: 31 | E42: 18 | F42: 32 | G42: 19 | H42: 28 | I42: 14
A43: Miroslav Kadvolt | B43: 0 | C43: 0 | D43: 0 | E43: 0 | F43: 37 | G43: 17 | H43: 31 | I43: 14
A44: Ján Falath | B44: 23 | C44: 10 | D44: 35 | E44: 21
A45: Mária Falathová | B45: 28 | C45: 16 | D45: 32 | E45: 20
A46: 1. Výberový výsledok | B46: =IFERROR(LARGE(B42:B45,1),0) -> 32 | C46: =IFERROR(LARGE(C42:C45,1),0) -> 18 | D46: 35 | E46: 21 | F46: 37 | G46: 19 | H46: 31 | I46: 14 | J46: 0 | K46: 0 | L46: 0 | M46: 0
A47: 2. Výberový výsledok | B47: =IFERROR(LARGE(B42:B45,2),0) -> 28 | C47: =IFERROR(LARGE(C42:C45,2),0) -> 16 | D47: 32 | E47: 20 | F47: 32 | G47: 17 | H47: 28 | I47: 14 | J47: 0 | K47: 0 | L47: 0 | M47: 0
A48: Výsledok | B48: =SUM(B46:B47) -> 60 | C48: =SUM(C46:C47) -> 34 | D48: =SUM(D46:D47) -> 67 | E48: 41 | F48: 69 | G48: 36 | H48: 59 | I48: 28 | J48: 0 | K48: 0 | L48: 0 | M48: 0
A50: Vaša SLOVENSKO | B50: Kolo 1. (Netto) | C50: Kolo 1. (Brutto) | D50: Kolo 2. (Netto) | E50: Kolo 2. (Brutto) | F50: Kolo 3. (Netto) | G50: Kolo 3. (Brutto) | H50: Kolo 4. (Netto) | I50: Kolo 4. (Brutto) | J50: Kolo 5. (Netto) | K50: Kolo 5. (Brutto) | L50: Kolo 6. (Netto) | M50: Kolo 6. (Brutto)
A51: Tibor Markó | B51: 32 | C51: 16 | D51: 30 | E51: 15 | F51: 31 | G51: 14
A52: Dalimil Remunda | B52: 20 | C52: 13 | D52: 0 | E52: 0 | H52: 34 | I52: 25
A53: Petr Špaček | B53: 23 | C53: 7 | D53: 33 | E53: 14 | F53: 32 | G53: 13
A54: Ladislav Špok | B54: 0 | C54: 0 | D54: 30 | E54: 18 | F54: 32 | G54: 19 | H54: 31 | I54: 19
A55: 1. Výberový výsledok | B55: =IFERROR(LARGE(B51:B54,1),0) -> 32 | C55: =IFERROR(LARGE(C51:C54,1),0) -> 16 | D55: 33 | E55: 18 | F55: 32 | G55: 19 | H55: 34 | I55: 25 | J55: 0 | K55: 0 | L55: 0 | M55: 0
A56: 2. Výberový výsledok | B56: =IFERROR(LARGE(B51:B54,2),0) -> 23 | C56: =IFERROR(LARGE(C51:C54,2),0) -> 13 | D56: 30 | E56: 15 | F56: 32 | G56: 14 | H56: 31 | I56: 19 | J56: 0 | K56: 0 | L56: 0 | M56: 0
A57: Výsledok | B57: =SUM(B55:B56) -> 55 | C57: =SUM(C55:C56) -> 29 | D57: =SUM(D55:D56) -> 63 | E57: 33 | F57: 64 | G57: 33 | H57: 65 | I57: 44 | J57: 0 | K57: 0 | L57: 0 | M57: 0
A59: Inter Audit Group | B59: Kolo 1. (Netto) | C59: Kolo 1. (Brutto) | D59: Kolo 2. (Netto) | E59: Kolo 2. (Brutto) | F59: Kolo 3. (Netto) | G59: Kolo 3. (Brutto) | H59: Kolo 4. (Netto) | I59: Kolo 4. (Brutto) | J59: Kolo 5. (Netto) | K59: Kolo 5. (Brutto) | L59: Kolo 6. (Netto) | M59: Kolo 6. (Brutto)
A60: Vladimír Kolenič | B60: 29 | C60: 14 | D60: 29 | E60: 14 | F60: 35 | G60: 18 | H60: 33 | I60: 17
A61: Maroš Ďurík | B61: 29 | C61: 26 | D61: 36 | E61: 33 | F61: 37 | G61: 35 | H61: 28 | I61: 26
A62: Martin Bielik | B62: 19 | C62: 2 | D62: 20 | E62: 1 | F62: 12 | G62: 0 | H62: 16 | I62: 0
A63: Hráč 4 | B63: - | C63: - | D63: - | E63: - | F63: - | G63: - | H63: - | I63: - | J63: - | K63: - | L63: - | M63: -
A64: 1. Výberový výsledok | B64: =IFERROR(LARGE(B60:B63,1),0) -> 29 | C64: =IFERROR(LARGE(C60:C63,1),0) -> 26 | D64: 36 | E64: 33 | F64: 37 | G64: 35 | H64: 33 | I64: 26 | J64: 0 | K64: 0 | L64: 0 | M64: 0
A65: 2. Výberový výsledok | B65: =IFERROR(LARGE(B60:B63,2),0) -> 29 | C65: =IFERROR(LARGE(C60:C63,2),0) -> 14 | D65: 29 | E65: 14 | F65: 35 | G65: 18 | H65: 28 | I65: 17 | J65: 0 | K65: 0 | L65: 0 | M65: 0
A66: Výsledok | B66: =SUM(B64:B65) -> 58 | C66: =SUM(C64:C65) -> 40 | D66: =SUM(D64:D65) -> 65 | E66: 47 | F66: 72 | G66: 53 | H66: 61 | I66: 43 | J66: 0 | K66: 0 | L66: 0 | M66: 0
A68: Tenisové múzeum | B68: Kolo 1. (Netto) | C68: Kolo 1. (Brutto) | D68: Kolo 2. (Netto) | E68: Kolo 2. (Brutto) | F68: Kolo 3. (Netto) | G68: Kolo 3. (Brutto) | H68: Kolo 4. (Netto) | I68: Kolo 4. (Brutto) | J68: Kolo 5. (Netto) | K68: Kolo 5. (Brutto) | L68: Kolo 6. (Netto) | M68: Kolo 6. (Brutto)
A69: Igor Kucej | B69: 43 | C69: 15 | D69: 40 | E69: 12 | F69: 42 | G69: 20 | H69: 28 | I69: 10
A70: Kryštof Richter | B70: 0 | C70: 0 | D70: 17 | E70: 8 | F70: 25 | G70: 12 | H70: 24 | I70: 11
A71: Matúš Repka | B71: 0 | C71: 0 | D71: 36 | E71: 18 | F71: 33 | G71: 17
A72: Martina Richterová | B72: 0 | C72: 0 | D72: 0 | E72: 0 | F72: 34 | G72: 17 | H72: 30 | I72: 14
A73: 1. Výberový výsledok | B73: =IFERROR(LARGE(B69:B72,1),0) -> 43 | C73: =IFERROR(LARGE(C69:C72,1),0) -> 15 | D73: 40 | E73: 18 | F73: 42 | G73: 20 | H73: 30 | I73: 14 | J73: 0 | K73: 0 | L73: 0 | M73: 0
A74: 2. Výberový výsledok | B74: =IFERROR(LARGE(B69:B72,2),0) -> 0 | C74: =IFERROR(LARGE(C69:C72,2),0) -> 0 | D74: 36 | E74: 12 | F74: 34 | G74: 17 | H74: 28 | I74: 11 | J74: 0 | K74: 0 | L74: 0 | M74: 0
A75: Výsledok | B75: =SUM(B73:B74) -> 43 | C75: =SUM(C73:C74) -> 15 | D75: =SUM(D73:D74) -> 76 | E75: 30 | F75: 76 | G75: 37 | H75: 58 | I75: 25 | J75: 0 | K75: 0 | L75: 0 | M75: 0
Q78: Finálne Výsledky | X78: výsledky za kolo 1. | AE78: výsledky za kolo 2. | AL78: výsledky za kolo 3. | AS78: výsledky za kolo 4. | AZ78: výsledky za kolo 5. | BG78: výsledky za kolo 6.
Q79: Netto | T79: Brutto | X79: Netto | AA79: Brutto | AE79: Netto | AH79: Brutto | AL79: Netto | AO79: Brutto | AS79: Netto | AV79: Brutto | AZ79: Netto | BC79: Brutto | BG79: Netto | BJ79: Brutto
Q80: Poradie | R80: Tým | S80: Body | T80: Poradie | U80: Tým | V80: Body | X80: Poradie | Y80: Tým | Z80: Body | AA80: Poradie | AB80: Tým | AC80: Body | AE80: Poradie | AF80: Tým | AG80: Body | AH80: Poradie | AI80: Tým | AJ80: Body | AL80: Poradie | AM80: Tým | AN80: Body | AO80: Poradie | AP80: Tým | AQ80: Body | AS80: Poradie | AT80: Tým | AU80: Body | AV80: Poradie | AW80: Tým | AX80: Body | AZ80: Poradie | BA80: Tým | BB80: Body | BC80: Poradie | BD80: Tým | BE80: Body | BG80: Poradie | BH80: Tým | BI80: Body | BJ80: Poradie | BK80: Tým | BL80: Body
Q81: 1 | R81: =IFERROR(VLOOKUP(Q81,Q$94:S$101,2,FALSE),VLOOKUP(Q81,Q$94:S$101,2,TRUE)) -> Wűstenrot | S81: =IFERROR(VLOOKUP(R81,R$94:T$101,2,FALSE),VLOOKUP(R81,R$94:T$101,2,TRUE)) -> 275 | T81: 1 | U81: =IFERROR(VLOOKUP(T81,T$94:V$101,2,FALSE),VLOOKUP(T81,T$94:V$101,2,TRUE)) -> Wűstenrot | V81: =IFERROR(VLOOKUP(U81,U$94:W$101,2,FALSE),VLOOKUP(U81,U$94:W$101,2,TRUE)) -> 210 | X81: 1 | Y81: =IFERROR(VLOOKUP(X81,X$94:Z$101,2,FALSE),VLOOKUP(X81,X$94:Z$101,2,TRUE)) -> Otyk Invest | Z81: =IFERROR(VLOOKUP(Y81,Y$94:AA$101,2,FALSE),VLOOKUP(Y81,Y$94:AA$101,2,TRUE)) -> 69 | AA81: 1 | AB81: =IFERROR(VLOOKUP(AA81,AA$94:AC$101,2,FALSE),VLOOKUP(AA81,AA$94:AC$101,2,TRUE)) -> Wűstenrot | AC81: =IFERROR(VLOOKUP(AB81,AB$94:AD$101,2,FALSE),VLOOKUP(AB81,AB$94:AD$101,2,TRUE)) -> 53 | AE81: 1 | AF81: =IFERROR(VLOOKUP(AE81,AE$94:AG$101,2,FALSE),VLOOKUP(AE81,AE$94:AG$101,2,TRUE)) -> Bau3mex | AG81: =IFERROR(VLOOKUP(AF81,AF$94:AH$101,2,FALSE),VLOOKUP(AF81,AF$94:AH$101,2,TRUE)) -> 76 | AH81: 1 | AI81: =IFERROR(VLOOKUP(AH81,AH$94:AJ$101,2,FALSE),VLOOKUP(AH81,AH$94:AJ$101,2,TRUE)) -> Wűstenrot | AJ81: =IFERROR(VLOOKUP(AI81,AI$94:AK$101,2,FALSE),VLOOKUP(AI81,AI$94:AK$101,2,TRUE)) -> 58 | AL81: 1 | AM81: =IFERROR(VLOOKUP(AL81,AL$94:AN$101,2,FALSE),VLOOKUP(AL81,AL$94:AN$101,2,TRUE)) -> Bau3mex | AN81: =IFERROR(VLOOKUP(AM81,AM$94:AO$101,2,FALSE),VLOOKUP(AM81,AM$94:AO$101,2,TRUE)) -> 76 | AO81: 1 | AP81: =IFERROR(VLOOKUP(AO81,AO$94:AQ$101,2,FALSE),VLOOKUP(AO81,AO$94:AQ$101,2,TRUE)) -> Mercedes-Benz | AQ81: =IFERROR(VLOOKUP(AP81,AP$94:AR$101,2,FALSE),VLOOKUP(AP81,AP$94:AR$101,2,TRUE)) -> 57 | AS81: 1 | AT81: =IFERROR(VLOOKUP(AS81,AS$94:AU$101,2,FALSE),VLOOKUP(AS81,AS$94:AU$101,2,TRUE)) -> Favorit | AU81: =IFERROR(VLOOKUP(AT81,AT$94:AV$101,2,FALSE),VLOOKUP(AT81,AT$94:AV$101,2,TRUE)) -> 66 | AV81: 1 | AW81: =IFERROR(VLOOKUP(AV81,AV$94:AX$101,2,FALSE),VLOOKUP(AV81,AV$94:AX$101,2,TRUE)) -> Favorit | AX81: =IFERROR(VLOOKUP(AW81,AW$94:AY$101,2,FALSE),VLOOKUP(AW81,AW$94:AY$101,2,TRUE)) -> 52 | AZ81: 1 | BA81: =IFERROR(VLOOKUP(AZ81,AZ$94:BB$101,2,FALSE),VLOOKUP(AZ81,AZ$94:BB$101,2,TRUE)) -> Mercedes-Benz | BB81: =IFERROR(VLOOKUP(BA81,BA$94:BC$101,2,FALSE),VLOOKUP(BA81,BA$94:BC$101,2,TRUE)) -> 0 | BC81: 1 | BD81: =IFERROR(VLOOKUP(BC81,BC$94:BE$101,2,FALSE),VLOOKUP(BC81,BC$94:BE$101,2,TRUE)) -> Mercedes-Benz | BE81: =IFERROR(VLOOKUP(BD81,BD$94:BF$101,2,FALSE),VLOOKUP(BD81,BD$94:BF$101,2,TRUE)) -> 0 | BG81: 1 | BH81: =IFERROR(VLOOKUP(BG81,BG$94:BI$101,2,FALSE),VLOOKUP(BG81,BG$94:BI$101,2,TRUE)) -> Mercedes-Benz | BI81: =IFERROR(VLOOKUP(BH81,BH$94:BJ$101,2,FALSE),VLOOKUP(BH81,BH$94:BJ$101,2,TRUE)) -> 0 | BJ81: 1 | BK81: =IFERROR(VLOOKUP(BJ81,BJ$94:BL$101,2,FALSE),VLOOKUP(BJ81,BJ$94:BL$101,2,TRUE)) -> Mercedes-Benz | BL81: =IFERROR(VLOOKUP(BK81,BK$94:BM$101,2,FALSE),VLOOKUP(BK81,BK$94:BM$101,2,TRUE)) -> 0
Q82: 2 | R82: =IFERROR(VLOOKUP(Q82,Q$94:S$101,2,FALSE),VLOOKUP(Q82,Q$94:S$101,2,TRUE)) -> Otyk Invest | S82: 266 | T82: 2 | U82: =IFERROR(VLOOKUP(T82,T$94:V$101,2,FALSE),VLOOKUP(T82,T$94:V$101,2,TRUE)) -> Mercedes-Benz | V82: 209 | X82: 2 | Y82: =IFERROR(VLOOKUP(X82,X$94:Z$101,2,FALSE),VLOOKUP(X82,X$94:Z$101,2,TRUE)) -> Wűstenrot | Z82: 69 | AA82: 2 | AB82: =IFERROR(VLOOKUP(AA82,AA$94:AC$101,2,FALSE),VLOOKUP(AA82,AA$94:AC$101,2,TRUE)) -> Mercedes-Benz | AC82: 52 | AE82: 2 | AF82: =IFERROR(VLOOKUP(AE82,AE$94:AG$101,2,FALSE),VLOOKUP(AE82,AE$94:AG$101,2,TRUE)) -> Otyk Invest | AG82: 71 | AH82: 2 | AI82: =IFERROR(VLOOKUP(AH82,AH$94:AJ$101,2,FALSE),VLOOKUP(AH82,AH$94:AJ$101,2,TRUE)) -> Mercedes-Benz | AJ82: 51 | AL82: 2 | AM82: =IFERROR(VLOOKUP(AL82,AL$94:AN$101,2,FALSE),VLOOKUP(AL82,AL$94:AN$101,2,TRUE)) -> Inter Audit Group | AN82: 72 | AO82: 2 | AP82: =IFERROR(VLOOKUP(AO82,AO$94:AQ$101,2,FALSE),VLOOKUP(AO82,AO$94:AQ$101,2,TRUE)) -> Inter Audit Group | AQ82: 53 | AS82: 2 | AT82: =IFERROR(VLOOKUP(AS82,AS$94:AU$101,2,FALSE),VLOOKUP(AS82,AS$94:AU$101,2,TRUE)) -> Wűstenrot | AU82: 65 | AV82: 2 | AW82: =IFERROR(VLOOKUP(AV82,AV$94:AX$101,2,FALSE),VLOOKUP(AV82,AV$94:AX$101,2,TRUE)) -> Mercedes-Benz | AX82: 49 | AZ82: 2 | BA82: =IFERROR(VLOOKUP(AZ82,AZ$94:BB$101,2,FALSE),VLOOKUP(AZ82,AZ$94:BB$101,2,TRUE)) -> Otyk Invest | BB82: 0 | BC82: 2 | BD82: =IFERROR(VLOOKUP(BC82,BC$94:BE$101,2,FALSE),VLOOKUP(BC82,BC$94:BE$101,2,TRUE)) -> Otyk Invest | BE82: 0 | BG82: 2 | BH82: =IFERROR(VLOOKUP(BG82,BG$94:BI$101,2,FALSE),VLOOKUP(BG82,BG$94:BI$101,2,TRUE)) -> Otyk Invest | BI82: 0 | BJ82: 2 | BK82: =IFERROR(VLOOKUP(BJ82,BJ$94:BL$101,2,FALSE),VLOOKUP(BJ82,BJ$94:BL$101,2,TRUE)) -> Otyk Invest | BL82: 0
Q83: 3 | R83: =IFERROR(VLOOKUP(Q83,Q$94:S$101,2,FALSE),VLOOKUP(Q83,Q$94:S$101,2,TRUE)) -> Mercedes-Benz | S83: 259 | T83: 3 | U83: =IFERROR(VLOOKUP(T83,T$94:V$101,2,FALSE),VLOOKUP(T83,T$94:V$101,2,TRUE)) -> Favorit | V83: 187 | X83: 3 | Y83: =IFERROR(VLOOKUP(X83,X$94:Z$101,2,FALSE),VLOOKUP(X83,X$94:Z$101,2,TRUE)) -> Mercedes-Benz | Z83: 67 | AA83: 3 | AB83: =IFERROR(VLOOKUP(AA83,AA$94:AC$101,2,FALSE),VLOOKUP(AA83,AA$94:AC$101,2,TRUE)) -> Favorit | AC83: 40 | AE83: 3 | AF83: =IFERROR(VLOOKUP(AE83,AE$94:AG$101,2,FALSE),VLOOKUP(AE83,AE$94:AG$101,2,TRUE)) -> Wűstenrot | AG83: 71 | AH83: 3 | AI83: =IFERROR(VLOOKUP(AH83,AH$94:AJ$101,2,FALSE),VLOOKUP(AH83,AH$94:AJ$101,2,TRUE)) -> Favorit | AJ83: 48 | AL83: 3 | AM83: =IFERROR(VLOOKUP(AL83,AL$94:AN$101,2,FALSE),VLOOKUP(AL83,AL$94:AN$101,2,TRUE)) -> Wűstenrot | AN83: 70 | AO83: 3 | AP83: =IFERROR(VLOOKUP(AO83,AO$94:AQ$101,2,FALSE),VLOOKUP(AO83,AO$94:AQ$101,2,TRUE)) -> Wűstenrot | AQ83: 51 | AS83: 3 | AT83: =IFERROR(VLOOKUP(AS83,AS$94:AU$101,2,FALSE),VLOOKUP(AS83,AS$94:AU$101,2,TRUE)) -> Vaša SLOVENSKO | AU83: 65 | AV83: 3 | AW83: =IFERROR(VLOOKUP(AV83,AV$94:AX$101,2,FALSE),VLOOKUP(AV83,AV$94:AX$101,2,TRUE)) -> Wűstenrot | AX83: 48 | AZ83: 3 | BA83: =IFERROR(VLOOKUP(AZ83,AZ$94:BB$101,2,FALSE),VLOOKUP(AZ83,AZ$94:BB$101,2,TRUE)) -> Favorit | BB83: 0 | BC83: 3 | BD83: =IFERROR(VLOOKUP(BC83,BC$94:BE$101,2,FALSE),VLOOKUP(BC83,BC$94:BE$101,2,TRUE)) -> Favorit | BE83: 0 | BG83: 3 | BH83: =IFERROR(VLOOKUP(BG83,BG$94:BI$101,2,FALSE),VLOOKUP(BG83,BG$94:BI$101,2,TRUE)) -> Favorit | BI83: 0 | BJ83: 3 | BK83: =IFERROR(VLOOKUP(BJ83,BJ$94:BL$101,2,FALSE),VLOOKUP(BJ83,BJ$94:BL$101,2,TRUE)) -> Favorit | BL83: 0
Q84: 4 | R84: =IFERROR(VLOOKUP(Q84,Q$94:S$101,2,FALSE),VLOOKUP(Q84,Q$94:S$101,2,TRUE)) -> Inter Audit Group | S84: 256 | T84: 4 | U84: =IFERROR(VLOOKUP(T84,T$94:V$101,2,FALSE),VLOOKUP(T84,T$94:V$101,2,TRUE)) -> Inter Audit Group | V84: 183 | X84: 4 | Y84: =IFERROR(VLOOKUP(X84,X$94:Z$101,2,FALSE),VLOOKUP(X84,X$94:Z$101,2,TRUE)) -> ŠEVT | Z84: 60 | AA84: 4 | AB84: =IFERROR(VLOOKUP(AA84,AA$94:AC$101,2,FALSE),VLOOKUP(AA84,AA$94:AC$101,2,TRUE)) -> Inter Audit Group | AC84: 40 | AE84: 4 | AF84: =IFERROR(VLOOKUP(AE84,AE$94:AG$101,2,FALSE),VLOOKUP(AE84,AE$94:AG$101,2,TRUE)) -> ŠEVT | AG84: 67 | AH84: 4 | AI84: =IFERROR(VLOOKUP(AH84,AH$94:AJ$101,2,FALSE),VLOOKUP(AH84,AH$94:AJ$101,2,TRUE)) -> Inter Audit Group | AJ84: 47 | AL84: 4 | AM84: =IFERROR(VLOOKUP(AL84,AL$94:AN$101,2,FALSE),VLOOKUP(AL84,AL$94:AN$101,2,TRUE)) -> ŠEVT | AN84: 69 | AO84: 4 | AP84: =IFERROR(VLOOKUP(AO84,AO$94:AQ$101,2,FALSE),VLOOKUP(AO84,AO$94:AQ$101,2,TRUE)) -> Favorit | AQ84: 47 | AS84: 4 | AT84: =IFERROR(VLOOKUP(AS84,AS$94:AU$101,2,FALSE),VLOOKUP(AS84,AS$94:AU$101,2,TRUE)) -> Mercedes-Benz | AU84: 62 | AV84: 4 | AW84: =IFERROR(VLOOKUP(AV84,AV$94:AX$101,2,FALSE),VLOOKUP(AV84,AV$94:AX$101,2,TRUE)) -> Vaša SLOVENSKO | AX84: 44 | AZ84: 4 | BA84: =IFERROR(VLOOKUP(AZ84,AZ$94:BB$101,2,FALSE),VLOOKUP(AZ84,AZ$94:BB$101,2,TRUE)) -> Wűstenrot | BB84: 0 | BC84: 4 | BD84: =IFERROR(VLOOKUP(BC84,BC$94:BE$101,2,FALSE),VLOOKUP(BC84,BC$94:BE$101,2,TRUE)) -> Wűstenrot | BE84: 0 | BG84: 4 | BH84: =IFERROR(VLOOKUP(BG84,BG$94:BI$101,2,FALSE),VLOOKUP(BG84,BG$94:BI$101,2,TRUE)) -> Wűstenrot | BI84: 0 | BJ84: 4 | BK84: =IFERROR(VLOOKUP(BJ84,BJ$94:BL$101,2,FALSE),VLOOKUP(BJ84,BJ$94:BL$101,2,TRUE)) -> Wűstenrot | BL84: 0
Q85: 5 | R85: =IFERROR(VLOOKUP(Q85,Q$94:S$101,2,FALSE),VLOOKUP(Q85,Q$94:S$101,2,TRUE)) -> ŠEVT | S85: 255 | T85: 5 | U85: =IFERROR(VLOOKUP(T85,T$94:V$101,2,FALSE),VLOOKUP(T85,T$94:V$101,2,TRUE)) -> Otyk Invest | V85: 162 | X85: 5 | Y85: =IFERROR(VLOOKUP(X85,X$94:Z$101,2,FALSE),VLOOKUP(X85,X$94:Z$101,2,TRUE)) -> Favorit | Z85: 59 | AA85: 5 | AB85: =IFERROR(VLOOKUP(AA85,AA$94:AC$101,2,FALSE),VLOOKUP(AA85,AA$94:AC$101,2,TRUE)) -> Otyk Invest | AC85: 38 | AE85: 5 | AF85: =IFERROR(VLOOKUP(AE85,AE$94:AG$101,2,FALSE),VLOOKUP(AE85,AE$94:AG$101,2,TRUE)) -> Favorit | AG85: 66 | AH85: 5 | AI85: =IFERROR(VLOOKUP(AH85,AH$94:AJ$101,2,FALSE),VLOOKUP(AH85,AH$94:AJ$101,2,TRUE)) -> Otyk Invest | AJ85: 43 | AL85: 5 | AM85: =IFERROR(VLOOKUP(AL85,AL$94:AN$101,2,FALSE),VLOOKUP(AL85,AL$94:AN$101,2,TRUE)) -> Mercedes-Benz | AN85: 67 | AO85: 5 | AP85: =IFERROR(VLOOKUP(AO85,AO$94:AQ$101,2,FALSE),VLOOKUP(AO85,AO$94:AQ$101,2,TRUE)) -> Otyk Invest | AQ85: 44 | AS85: 5 | AT85: =IFERROR(VLOOKUP(AS85,AS$94:AU$101,2,FALSE),VLOOKUP(AS85,AS$94:AU$101,2,TRUE)) -> Inter Audit Group | AU85: 61 | AV85: 5 | AW85: =IFERROR(VLOOKUP(AV85,AV$94:AX$101,2,FALSE),VLOOKUP(AV85,AV$94:AX$101,2,TRUE)) -> Inter Audit Group | AX85: 43 | AZ85: 5 | BA85: =IFERROR(VLOOKUP(AZ85,AZ$94:BB$101,2,FALSE),VLOOKUP(AZ85,AZ$94:BB$101,2,TRUE)) -> ŠEVT | BB85: 0 | BC85: 5 | BD85: =IFERROR(VLOOKUP(BC85,BC$94:BE$101,2,FALSE),VLOOKUP(BC85,BC$94:BE$101,2,TRUE)) -> ŠEVT | BE85: 0 | BG85: 5 | BH85: =IFERROR(VLOOKUP(BG85,BG$94:BI$101,2,FALSE),VLOOKUP(BG85,BG$94:BI$101,2,TRUE)) -> ŠEVT | BI85: 0 | BJ85: 5 | BK85: =IFERROR(VLOOKUP(BJ85,BJ$94:BL$101,2,FALSE),VLOOKUP(BJ85,BJ$94:BL$101,2,TRUE)) -> ŠEVT | BL85: 0
Q86: 6 | R86: =IFERROR(VLOOKUP(Q86,Q$94:S$101,2,FALSE),VLOOKUP(Q86,Q$94:S$101,2,TRUE)) -> Favorit | S86: 253 | T86: 6 | U86: =IFERROR(VLOOKUP(T86,T$94:V$101,2,FALSE),VLOOKUP(T86,T$94:V$101,2,TRUE)) -> ŠEVT | V86: 139 | X86: 6 | Y86: =IFERROR(VLOOKUP(X86,X$94:Z$101,2,FALSE),VLOOKUP(X86,X$94:Z$101,2,TRUE)) -> Inter Audit Group | Z86: 58 | AA86: 6 | AB86: =IFERROR(VLOOKUP(AA86,AA$94:AC$101,2,FALSE),VLOOKUP(AA86,AA$94:AC$101,2,TRUE)) -> ŠEVT | AC86: 34 | AE86: 6 | AF86: =IFERROR(VLOOKUP(AE86,AE$94:AG$101,2,FALSE),VLOOKUP(AE86,AE$94:AG$101,2,TRUE)) -> Inter Audit Group | AG86: 65 | AH86: 6 | AI86: =IFERROR(VLOOKUP(AH86,AH$94:AJ$101,2,FALSE),VLOOKUP(AH86,AH$94:AJ$101,2,TRUE)) -> ŠEVT | AJ86: 41 | AL86: 6 | AM86: =IFERROR(VLOOKUP(AL86,AL$94:AN$101,2,FALSE),VLOOKUP(AL86,AL$94:AN$101,2,TRUE)) -> Otyk Invest | AN86: 67 | AO86: 6 | AP86: =IFERROR(VLOOKUP(AO86,AO$94:AQ$101,2,FALSE),VLOOKUP(AO86,AO$94:AQ$101,2,TRUE)) -> Bau3mex | AQ86: 37 | AS86: 6 | AT86: =IFERROR(VLOOKUP(AS86,AS$94:AU$101,2,FALSE),VLOOKUP(AS86,AS$94:AU$101,2,TRUE)) -> Otyk Invest | AU86: 59 | AV86: 6 | AW86: =IFERROR(VLOOKUP(AV86,AV$94:AX$101,2,FALSE),VLOOKUP(AV86,AV$94:AX$101,2,TRUE)) -> Otyk Invest | AX86: 37 | AZ86: 6 | BA86: =IFERROR(VLOOKUP(AZ86,AZ$94:BB$101,2,FALSE),VLOOKUP(AZ86,AZ$94:BB$101,2,TRUE)) -> Vaša SLOVENSKO | BB86: 0 | BC86: 6 | BD86: =IFERROR(VLOOKUP(BC86,BC$94:BE$101,2,FALSE),VLOOKUP(BC86,BC$94:BE$101,2,TRUE)) -> Vaša SLOVENSKO | BE86: 0 | BG86: 6 | BH86: =IFERROR(VLOOKUP(BG86,BG$94:BI$101,2,FALSE),VLOOKUP(BG86,BG$94:BI$101,2,TRUE)) -> Vaša SLOVENSKO | BI86: 0 | BJ86: 6 | BK86: =IFERROR(VLOOKUP(BJ86,BJ$94:BL$101,2,FALSE),VLOOKUP(BJ86,BJ$94:BL$101,2,TRUE)) -> Vaša SLOVENSKO | BL86: 0
Q87: 7 | R87: =IFERROR(VLOOKUP(Q87,Q$94:S$101,2,FALSE),VLOOKUP(Q87,Q$94:S$101,2,TRUE)) -> Bau3mex | S87: 253 | T87: 7 | U87: =IFERROR(VLOOKUP(T87,T$94:V$101,2,FALSE),VLOOKUP(T87,T$94:V$101,2,TRUE)) -> Vaša SLOVENSKO | V87: 139 | X87: 7 | Y87: =IFERROR(VLOOKUP(X87,X$94:Z$101,2,FALSE),VLOOKUP(X87,X$94:Z$101,2,TRUE)) -> Vaša SLOVENSKO | Z87: 55 | AA87: 7 | AB87: =IFERROR(VLOOKUP(AA87,AA$94:AC$101,2,FALSE),VLOOKUP(AA87,AA$94:AC$101,2,TRUE)) -> Vaša SLOVENSKO | AC87: 29 | AE87: 7 | AF87: =IFERROR(VLOOKUP(AE87,AE$94:AG$101,2,FALSE),VLOOKUP(AE87,AE$94:AG$101,2,TRUE)) -> Mercedes-Benz | AG87: 63 | AH87: 7 | AI87: =IFERROR(VLOOKUP(AH87,AH$94:AJ$101,2,FALSE),VLOOKUP(AH87,AH$94:AJ$101,2,TRUE)) -> Vaša SLOVENSKO | AJ87: 33 | AL87: 7 | AM87: =IFERROR(VLOOKUP(AL87,AL$94:AN$101,2,FALSE),VLOOKUP(AL87,AL$94:AN$101,2,TRUE)) -> Vaša SLOVENSKO | AN87: 64 | AO87: 7 | AP87: =IFERROR(VLOOKUP(AO87,AO$94:AQ$101,2,FALSE),VLOOKUP(AO87,AO$94:AQ$101,2,TRUE)) -> ŠEVT | AQ87: 36 | AS87: 7 | AT87: =IFERROR(VLOOKUP(AS87,AS$94:AU$101,2,FALSE),VLOOKUP(AS87,AS$94:AU$101,2,TRUE)) -> ŠEVT | AU87: 59 | AV87: 7 | AW87: =IFERROR(VLOOKUP(AV87,AV$94:AX$101,2,FALSE),VLOOKUP(AV87,AV$94:AX$101,2,TRUE)) -> ŠEVT | AX87: 28 | AZ87: 7 | BA87: =IFERROR(VLOOKUP(AZ87,AZ$94:BB$101,2,FALSE),VLOOKUP(AZ87,AZ$94:BB$101,2,TRUE)) -> Inter Audit Group | BB87: 0 | BC87: 7 | BD87: =IFERROR(VLOOKUP(BC87,BC$94:BE$101,2,FALSE),VLOOKUP(BC87,BC$94:BE$101,2,TRUE)) -> Inter Audit Group | BE87: 0 | BG87: 7 | BH87: =IFERROR(VLOOKUP(BG87,BG$94:BI$101,2,FALSE),VLOOKUP(BG87,BG$94:BI$101,2,TRUE)) -> Inter Audit Group | BI87: 0 | BJ87: 7 | BK87: =IFERROR(VLOOKUP(BJ87,BJ$94:BL$101,2,FALSE),VLOOKUP(BJ87,BJ$94:BL$101,2,TRUE)) -> Inter Audit Group | BL87: 0
Q88: 8 | R88: =IFERROR(VLOOKUP(Q88,Q$94:S$101,2,FALSE),VLOOKUP(Q88,Q$94:S$101,2,TRUE)) -> Vaša SLOVENSKO | S88: 247 | T88: 8 | U88: =IFERROR(VLOOKUP(T88,T$94:V$101,2,FALSE),VLOOKUP(T88,T$94:V$101,2,TRUE)) -> Bau3mex | V88: 107 | X88: 8 | Y88: =IFERROR(VLOOKUP(X88,X$94:Z$101,2,FALSE),VLOOKUP(X88,X$94:Z$101,2,TRUE)) -> Bau3mex | Z88: 43 | AA88: 8 | AB88: =IFERROR(VLOOKUP(AA88,AA$94:AC$101,2,FALSE),VLOOKUP(AA88,AA$94:AC$101,2,TRUE)) -> Bau3mex | AC88: 15 | AE88: 8 | AF88: =IFERROR(VLOOKUP(AE88,AE$94:AG$101,2,FALSE),VLOOKUP(AE88,AE$94:AG$101,2,TRUE)) -> Vaša SLOVENSKO | AG88: 63 | AH88: 8 | AI88: =IFERROR(VLOOKUP(AH88,AH$94:AJ$101,2,FALSE),VLOOKUP(AH88,AH$94:AJ$101,2,TRUE)) -> Bau3mex | AJ88: 30 | AL88: 8 | AM88: =IFERROR(VLOOKUP(AL88,AL$94:AN$101,2,FALSE),VLOOKUP(AL88,AL$94:AN$101,2,TRUE)) -> Favorit | AN88: 62 | AO88: 8 | AP88: =IFERROR(VLOOKUP(AO88,AO$94:AQ$101,2,FALSE),VLOOKUP(AO88,AO$94:AQ$101,2,TRUE)) -> Vaša SLOVENSKO | AQ88: 33 | AS88: 8 | AT88: =IFERROR(VLOOKUP(AS88,AS$94:AU$101,2,FALSE),VLOOKUP(AS88,AS$94:AU$101,2,TRUE)) -> Bau3mex | AU88: 58 | AV88: 8 | AW88: =IFERROR(VLOOKUP(AV88,AV$94:AX$101,2,FALSE),VLOOKUP(AV88,AV$94:AX$101,2,TRUE)) -> Bau3mex | AX88: 25 | AZ88: 8 | BA88: =IFERROR(VLOOKUP(AZ88,AZ$94:BB$101,2,FALSE),VLOOKUP(AZ88,AZ$94:BB$101,2,TRUE)) -> Bau3mex | BB88: 0 | BC88: 8 | BD88: =IFERROR(VLOOKUP(BC88,BC$94:BE$101,2,FALSE),VLOOKUP(BC88,BC$94:BE$101,2,TRUE)) -> Bau3mex | BE88: 0 | BG88: 8 | BH88: =IFERROR(VLOOKUP(BG88,BG$94:BI$101,2,FALSE),VLOOKUP(BG88,BG$94:BI$101,2,TRUE)) -> Bau3mex | BI88: 0 | BJ88: 8 | BK88: =IFERROR(VLOOKUP(BJ88,BJ$94:BL$101,2,FALSE),VLOOKUP(BJ88,BJ$94:BL$101,2,TRUE)) -> Bau3mex | BL88: 0
Q92: Netto | T92: Brutto | X92: Netto | AA92: Brutto | AE92: Netto | AH92: Brutto | AL92: Netto | AO92: Brutto | AS92: Netto | AV92: Brutto | AZ92: Netto | BC92: Brutto | BG92: Netto | BJ92: Brutto
Q93: Poradie | R93: Tým | S93: Body | T93: Poradie | U93: Tým | V93: Body | X93: Poradie | Y93: Tým | Z93: Body | AA93: Poradie | AB93: Tým | AC93: Body | AE93: Poradie | AF93: Tým | AG93: Body | AH93: Poradie | AI93: Tým | AJ93: Body | AL93: Poradie | AM93: Tým | AN93: Body | AO93: Poradie | AP93: Tým | AQ93: Body | AS93: Poradie | AT93: Tým | AU93: Body | AV93: Poradie | AW93: Tým | AX93: Body | AZ93: Poradie | BA93: Tým | BB93: Body | BC93: Poradie | BD93: Tým | BE93: Body | BG93: Poradie | BH93: Tým | BI93: Body | BJ93: Poradie | BK93: Tým | BL93: Body
Q94: =RANK(S94,S$94:S$101)+COUNTIF(S$94:S94,S94)-1 -> 3 | R94: Mercedes-Benz | S94: =SUM(B12,D12,F12,H12,J12,L12) -> 259 | T94: =RANK(V94,V$94:V$101)+COUNTIF(V$94:V94,V94)-1 -> 2 | U94: Mercedes-Benz | V94: =SUM(C12,E12,G12,I12,K12,M12) -> 209 | X94: =RANK(Z94,Z$94:Z$101)+COUNTIF(Z$94:Z94,Z94)-1 -> 3 | Y94: Mercedes-Benz | Z94: =B12 -> 67 | AA94: =RANK(AC94,AC$94:AC$101)+COUNTIF(AC$94:AC94,AC94)-1 -> 2 | AB94: Mercedes-Benz | AC94: =C12 -> 52 | AE94: =RANK(AG94,AG$94:AG$101)+COUNTIF(AG$94:AG94,AG94)-1 -> 7 | AF94: Mercedes-Benz | AG94: =D12 -> 63 | AH94: =RANK(AJ94,AJ$94:AJ$101)+COUNTIF(AJ$94:AJ94,AJ94)-1 -> 2 | AI94: Mercedes-Benz | AJ94: =E12 -> 51 | AL94: =RANK(AN94,AN$94:AN$101)+COUNTIF(AN$94:AN94,AN94)-1 -> 5 | AM94: Mercedes-Benz | AN94: =F12 -> 67 | AO94: =RANK(AQ94,AQ$94:AQ$101)+COUNTIF(AQ$94:AQ94,AQ94)-1 -> 1 | AP94: Mercedes-Benz | AQ94: =G12 -> 57 | AS94: =RANK(AU94,AU$94:AU$101)+COUNTIF(AU$94:AU94,AU94)-1 -> 4 | AT94: Mercedes-Benz | AU94: =H12 -> 62 | AV94: =RANK(AX94,AX$94:AX$101)+COUNTIF(AX$94:AX94,AX94)-1 -> 2 | AW94: Mercedes-Benz | AX94: =I12 -> 49 | AZ94: =RANK(BB94,BB$94:BB$101)+COUNTIF(BB$94:BB94,BB94)-1 -> 1 | BA94: Mercedes-Benz | BB94: =J12 -> 0 | BC94: =RANK(BE94,BE$94:BE$101)+COUNTIF(BE$94:BE94,BE94)-1 -> 1 | BD94: Mercedes-Benz | BE94: =K12 -> 0 | BG94: =RANK(BI94,BI$94:BI$101)+COUNTIF(BI$94:BI94,BI94)-1 -> 1 | BH94: Mercedes-Benz | BI94: =L12 -> 0 | BJ94: =RANK(BL94,BL$94:BL$101)+COUNTIF(BL$94:BL94,BL94)-1 -> 1 | BK94: Mercedes-Benz | BL94: =M12 -> 0
Q95: =RANK(S95,S$94:S$101)+COUNTIF(S$94:S95,S95)-1 -> 2 | R95: Otyk Invest | S95: =SUM(B21,D21,F21,H21,J21,L21) -> 266 | T95: =RANK(V95,V$94:V$101)+COUNTIF(V$94:V95,V95)-1 -> 5 | U95: Otyk Invest | V95: =SUM(C21,E21,G21,I21,K21,M21) -> 162 | X95: =RANK(Z95,Z$94:Z$101)+COUNTIF(Z$94:Z95,Z95)-1 -> 1 | Y95: Otyk Invest | Z95: =B21 -> 69 | AA95: =RANK(AC95,AC$94:AC$101)+COUNTIF(AC$94:AC95,AC95)-1 -> 5 | AB95: Otyk Invest | AC95: =C21 -> 38 | AE95: =RANK(AG95,AG$94:AG$101)+COUNTIF(AG$94:AG95,AG95)-1 -> 2 | AF95: Otyk Invest | AG95: =D21 -> 71 | AH95: =RANK(AJ95,AJ$94:AJ$101)+COUNTIF(AJ$94:AJ95,AJ95)-1 -> 5 | AI95: Otyk Invest | AJ95: =E21 -> 43 | AL95: =RANK(AN95,AN$94:AN$101)+COUNTIF(AN$94:AN95,AN95)-1 -> 6 | AM95: Otyk Invest | AN95: =F21 -> 67 | AO95: =RANK(AQ95,AQ$94:AQ$101)+COUNTIF(AQ$94:AQ95,AQ95)-1 -> 5 | AP95: Otyk Invest | AQ95: =G21 -> 44 | AS95: =RANK(AU95,AU$94:AU$101)+COUNTIF(AU$94:AU95,AU95)-1 -> 6 | AT95: Otyk Invest | AU95: =H21 -> 59 | AV95: =RANK(AX95,AX$94:AX$101)+COUNTIF(AX$94:AX95,AX95)-1 -> 6 | AW95: Otyk Invest | AX95: =I21 -> 37 | AZ95: =RANK(BB95,BB$94:BB$101)+COUNTIF(BB$94:BB95,BB95)-1 -> 2 | BA95: Otyk Invest | BB95: =J21 -> 0 | BC95: =RANK(BE95,BE$94:BE$101)+COUNTIF(BE$94:BE95,BE95)-1 -> 2 | BD95: Otyk Invest | BE95: =K21 -> 0 | BG95: =RANK(BI95,BI$94:BI$101)+COUNTIF(BI$94:BI95,BI95)-1 -> 2 | BH95: Otyk Invest | BI95: =L21 -> 0 | BJ95: =RANK(BL95,BL$94:BL$101)+COUNTIF(BL$94:BL95,BL95)-1 -> 2 | BK95: Otyk Invest | BL95: =M21 -> 0
Q96: =RANK(S96,S$94:S$101)+COUNTIF(S$94:S96,S96)-1 -> 6 | R96: Favorit | S96: =SUM(B30,D30,F30,H30,J30,L30) -> 253 | T96: =RANK(V96,V$94:V$101)+COUNTIF(V$94:V96,V96)-1 -> 3 | U96: Favorit | V96: =SUM(C30,E30,G30,I30,K30,M30) -> 187 | X96: =RANK(Z96,Z$94:Z$101)+COUNTIF(Z$94:Z96,Z96)-1 -> 5 | Y96: Favorit | Z96: =B30 -> 59 | AA96: =RANK(AC96,AC$94:AC$101)+COUNTIF(AC$94:AC96,AC96)-1 -> 3 | AB96: Favorit | AC96: =C30 -> 40 | AE96: =RANK(AG96,AG$94:AG$101)+COUNTIF(AG$94:AG96,AG96)-1 -> 5 | AF96: Favorit | AG96: =D30 -> 66 | AH96: =RANK(AJ96,AJ$94:AJ$101)+COUNTIF(AJ$94:AJ96,AJ96)-1 -> 3 | AI96: Favorit | AJ96: =E30 -> 48 | AL96: =RANK(AN96,AN$94:AN$101)+COUNTIF(AN$94:AN96,AN96)-1 -> 8 | AM96: Favorit | AN96: =F30 -> 62 | AO96: =RANK(AQ96,AQ$94:AQ$101)+COUNTIF(AQ$94:AQ96,AQ96)-1 -> 4 | AP96: Favorit | AQ96: =G30 -> 47 | AS96: =RANK(AU96,AU$94:AU$101)+COUNTIF(AU$94:AU96,AU96)-1 -> 1 | AT96: Favorit | AU96: =H30 -> 66 | AV96: =RANK(AX96,AX$94:AX$101)+COUNTIF(AX$94:AX96,AX96)-1 -> 1 | AW96: Favorit | AX96: =I30 -> 52 | AZ96: =RANK(BB96,BB$94:BB$101)+COUNTIF(BB$94:BB96,BB96)-1 -> 3 | BA96: Favorit | BB96: =J30 -> 0 | BC96: =RANK(BE96,BE$94:BE$101)+COUNTIF(BE$94:BE96,BE96)-1 -> 3 | BD96: Favorit | BE96: =K30 -> 0 | BG96: =RANK(BI96,BI$94:BI$101)+COUNTIF(BI$94:BI96,BI96)-1 -> 3 | BH96: Favorit | BI96: =L30 -> 0 | BJ96: =RANK(BL96,BL$94:BL$101)+COUNTIF(BL$94:BL96,BL96)-1 -> 3 | BK96: Favorit | BL96: =M30 -> 0
Q97: =RANK(S97,S$94:S$101)+COUNTIF(S$94:S97,S97)-1 -> 1 | R97: Wűstenrot | S97: =SUM(B39,D39,F39,H39,J39,L39) -> 275 | T97: =RANK(V97,V$94:V$101)+COUNTIF(V$94:V97,V97)-1 -> 1 | U97: Wűstenrot | V97: =SUM(C39,E39,G39,I39,K39,M39) -> 210 | X97: =RANK(Z97,Z$94:Z$101)+COUNTIF(Z$94:Z97,Z97)-1 -> 2 | Y97: Wűstenrot | Z97: =B39 -> 69 | AA97: =RANK(AC97,AC$94:AC$101)+COUNTIF(AC$94:AC97,AC97)-1 -> 1 | AB97: Wűstenrot | AC97: =C39 -> 53 | AE97: =RANK(AG97,AG$94:AG$101)+COUNTIF(AG$94:AG97,AG97)-1 -> 3 | AF97: Wűstenrot | AG97: =D39 -> 71 | AH97: =RANK(AJ97,AJ$94:AJ$101)+COUNTIF(AJ$94:AJ97,AJ97)-1 -> 1 | AI97: Wűstenrot | AJ97: =E39 -> 58 | AL97: =RANK(AN97,AN$94:AN$101)+COUNTIF(AN$94:AN97,AN97)-1 -> 3 | AM97: Wűstenrot | AN97: =F39 -> 70 | AO97: =RANK(AQ97,AQ$94:AQ$101)+COUNTIF(AQ$94:AQ97,AQ97)-1 -> 3 | AP97: Wűstenrot | AQ97: =G39 -> 51 | AS97: =RANK(AU97,AU$94:AU$101)+COUNTIF(AU$94:AU97,AU97)-1 -> 2 | AT97: Wűstenrot | AU97: =H39 -> 65 | AV97: =RANK(AX97,AX$94:AX$101)+COUNTIF(AX$94:AX97,AX97)-1 -> 3 | AW97: Wűstenrot | AX97: =I39 -> 48 | AZ97: =RANK(BB97,BB$94:BB$101)+COUNTIF(BB$94:BB97,BB97)-1 -> 4 | BA97: Wűstenrot | BB97: =J39 -> 0 | BC97: =RANK(BE97,BE$94:BE$101)+COUNTIF(BE$94:BE97,BE97)-1 -> 4 | BD97: Wűstenrot | BE97: =K39 -> 0 | BG97: =RANK(BI97,BI$94:BI$101)+COUNTIF(BI$94:BI97,BI97)-1 -> 4 | BH97: Wűstenrot | BI97: =L39 -> 0 | BJ97: =RANK(BL97,BL$94:BL$101)+COUNTIF(BL$94:BL97,BL97)-1 -> 4 | BK97: Wűstenrot | BL97: =M39 -> 0
Q98: =RANK(S98,S$94:S$101)+COUNTIF(S$94:S98,S98)-1 -> 5 | R98: ŠEVT | S98: =SUM(B48,D48,F48,H48,J48,L48) -> 255 | T98: =RANK(V98,V$94:V$101)+COUNTIF(V$94:V98,V98)-1 -> 6 | U98: ŠEVT | V98: =SUM(C48,E48,G48,I48,K48,M48) -> 139 | X98: =RANK(Z98,Z$94:Z$101)+COUNTIF(Z$94:Z98,Z98)-1 -> 4 | Y98: ŠEVT | Z98: =B48 -> 60 | AA98: =RANK(AC98,AC$94:AC$101)+COUNTIF(AC$94:AC98,AC98)-1 -> 6 | AB98: ŠEVT | AC98: =C48 -> 34 | AE98: =RANK(AG98,AG$94:AG$101)+COUNTIF(AG$94:AG98,AG98)-1 -> 4 | AF98: ŠEVT | AG98: =D48 -> 67 | AH98: =RANK(AJ98,AJ$94:AJ$101)+COUNTIF(AJ$94:AJ98,AJ98)-1 -> 6 | AI98: ŠEVT | AJ98: =E48 -> 41 | AL98: =RANK(AN98,AN$94:AN$101)+COUNTIF(AN$94:AN98,AN98)-1 -> 4 | AM98: ŠEVT | AN98: =F48 -> 69 | AO98: =RANK(AQ98,AQ$94:AQ$101)+COUNTIF(AQ$94:AQ98,AQ98)-1 -> 7 | AP98: ŠEVT | AQ98: =G48 -> 36 | AS98: =RANK(AU98,AU$94:AU$101)+COUNTIF(AU$94:AU98,AU98)-1 -> 7 | AT98: ŠEVT | AU98: =H48 -> 59 | AV98: =RANK(AX98,AX$94:AX$101)+COUNTIF(AX$94:AX98,AX98)-1 -> 7 | AW98: ŠEVT | AX98: =I48 -> 28 | AZ98: =RANK(BB98,BB$94:BB$101)+COUNTIF(BB$94:BB98,BB98)-1 -> 5 | BA98: ŠEVT | BB98: =J48 -> 0 | BC98: =RANK(BE98,BE$94:BE$101)+COUNTIF(BE$94:BE98,BE98)-1 -> 5 | BD98: ŠEVT | BE98: =K48 -> 0 | BG98: =RANK(BI98,BI$94:BI$101)+COUNTIF(BI$94:BI98,BI98)-1 -> 5 | BH98: ŠEVT | BI98: =L48 -> 0 | BJ98: =RANK(BL98,BL$94:BL$101)+COUNTIF(BL$94:BL98,BL98)-1 -> 5 | BK98: ŠEVT | BL98: =M48 -> 0
Q99: =RANK(S99,S$94:S$101)+COUNTIF(S$94:S99,S99)-1 -> 8 | R99: Vaša SLOVENSKO | S99: =SUM(B57,D57,F57,H57,J57,L57) -> 247 | T99: =RANK(V99,V$94:V$101)+COUNTIF(V$94:V99,V99)-1 -> 7 | U99: Vaša SLOVENSKO | V99: =SUM(C57,E57,G57,I57,K57,M57) -> 139 | X99: =RANK(Z99,Z$94:Z$101)+COUNTIF(Z$94:Z99,Z99)-1 -> 7 | Y99: Vaša SLOVENSKO | Z99: =B57 -> 55 | AA99: =RANK(AC99,AC$94:AC$101)+COUNTIF(AC$94:AC99,AC99)-1 -> 7 | AB99: Vaša SLOVENSKO | AC99: =C57 -> 29 | AE99: =RANK(AG99,AG$94:AG$101)+COUNTIF(AG$94:AG99,AG99)-1 -> 8 | AF99: Vaša SLOVENSKO | AG99: =D57 -> 63 | AH99: =RANK(AJ99,AJ$94:AJ$101)+COUNTIF(AJ$94:AJ99,AJ99)-1 -> 7 | AI99: Vaša SLOVENSKO | AJ99: =E57 -> 33 | AL99: =RANK(AN99,AN$94:AN$101)+COUNTIF(AN$94:AN99,AN99)-1 -> 7 | AM99: Vaša SLOVENSKO | AN99: =F57 -> 64 | AO99: =RANK(AQ99,AQ$94:AQ$101)+COUNTIF(AQ$94:AQ99,AQ99)-1 -> 8 | AP99: Vaša SLOVENSKO | AQ99: =G57 -> 33 | AS99: =RANK(AU99,AU$94:AU$101)+COUNTIF(AU$94:AU99,AU99)-1 -> 3 | AT99: Vaša SLOVENSKO | AU99: =H57 -> 65 | AV99: =RANK(AX99,AX$94:AX$101)+COUNTIF(AX$94:AX99,AX99)-1 -> 4 | AW99: Vaša SLOVENSKO | AX99: =I57 -> 44 | AZ99: =RANK(BB99,BB$94:BB$101)+COUNTIF(BB$94:BB99,BB99)-1 -> 6 | BA99: Vaša SLOVENSKO | BB99: =J57 -> 0 | BC99: =RANK(BE99,BE$94:BE$101)+COUNTIF(BE$94:BE99,BE99)-1 -> 6 | BD99: Vaša SLOVENSKO | BE99: =K57 -> 0 | BG99: =RANK(BI99,BI$94:BI$101)+COUNTIF(BI$94:BI99,BI99)-1 -> 6 | BH99: Vaša SLOVENSKO | BI99: =L57 -> 0 | BJ99: =RANK(BL99,BL$94:BL$101)+COUNTIF(BL$94:BL99,BL99)-1 -> 6 | BK99: Vaša SLOVENSKO | BL99: =M57 -> 0
Q100: =RANK(S100,S$94:S$101)+COUNTIF(S$94:S100,S100)-1 -> 4 | R100: Inter Audit Group | S100: =SUM(B66,D66,F66,H66,J66,L66) -> 256 | T100: =RANK(V100,V$94:V$101)+COUNTIF(V$94:V100,V100)-1 -> 4 | U100: Inter Audit Group | V100: =SUM(C66,E66,G66,I66,K66,M66) -> 183 | X100: =RANK(Z100,Z$94:Z$101)+COUNTIF(Z$94:Z100,Z100)-1 -> 6 | Y100: Inter Audit Group | Z100: =B66 -> 58 | AA100: =RANK(AC100,AC$94:AC$101)+COUNTIF(AC$94:AC100,AC100)-1 -> 4 | AB100: Inter Audit Group | AC100: =C66 -> 40 | AE100: =RANK(AG100,AG$94:AG$101)+COUNTIF(AG$94:AG100,AG100)-1 -> 6 | AF100: Inter Audit Group | AG100: =D66 -> 65 | AH100: =RANK(AJ100,AJ$94:AJ$101)+COUNTIF(AJ$94:AJ100,AJ100)-1 -> 4 | AI100: Inter Audit Group | AJ100: =E66 -> 47 | AL100: =RANK(AN100,AN$94:AN$101)+COUNTIF(AN$94:AN100,AN100)-1 -> 2 | AM100: Inter Audit Group | AN100: =F66 -> 72 | AO100: =RANK(AQ100,AQ$94:AQ$101)+COUNTIF(AQ$94:AQ100,AQ100)-1 -> 2 | AP100: Inter Audit Group | AQ100: =G66 -> 53 | AS100: =RANK(AU100,AU$94:AU$101)+COUNTIF(AU$94:AU100,AU100)-1 -> 5 | AT100: Inter Audit Group | AU100: =H66 -> 61 | AV100: =RANK(AX100,AX$94:AX$101)+COUNTIF(AX$94:AX100,AX100)-1 -> 5 | AW100: Inter Audit Group | AX100: =I66 -> 43 | AZ100: =RANK(BB100,BB$94:BB$101)+COUNTIF(BB$94:BB100,BB100)-1 -> 7 | BA100: Inter Audit Group | BB100: =J66 -> 0 | BC100: =RANK(BE100,BE$94:BE$101)+COUNTIF(BE$94:BE100,BE100)-1 -> 7 | BD100: Inter Audit Group | BE100: =K66 -> 0 | BG100: =RANK(BI100,BI$94:BI$101)+COUNTIF(BI$94:BI100,BI100)-1 -> 7 | BH100: Inter Audit Group | BI100: =L66 -> 0 | BJ100: =RANK(BL100,BL$94:BL$101)+COUNTIF(BL$94:BL100,BL100)-1 -> 7 | BK100: Inter Audit Group | BL100: =M66 -> 0
Q101: =RANK(S101,S$94:S$101)+COUNTIF(S$94:S101,S101)-1 -> 7 | R101: Bau3mex | S101: =SUM(B75,D75,F75,H75,J75,L75) -> 253 | T101: =RANK(V101,V$94:V$101)+COUNTIF(V$94:V101,V101)-1 -> 8 | U101: Bau3mex | V101: =SUM(C75,E75,G75,I75,K75,M75) -> 107 | X101: =RANK(Z101,Z$94:Z$101)+COUNTIF(Z$94:Z101,Z101)-1 -> 8 | Y101: Bau3mex | Z101: =B75 -> 43 | AA101: =RANK(AC101,AC$94:AC$101)+COUNTIF(AC$94:AC101,AC101)-1 -> 8 | AB101: Bau3mex | AC101: =C75 -> 15 | AE101: =RANK(AG101,AG$94:AG$101)+COUNTIF(AG$94:AG101,AG101)-1 -> 1 | AF101: Bau3mex | AG101: =D75 -> 76 | AH101: =RANK(AJ101,AJ$94:AJ$101)+COUNTIF(AJ$94:AJ101,AJ101)-1 -> 8 | AI101: Bau3mex | AJ101: =E75 -> 30 | AL101: =RANK(AN101,AN$94:AN$101)+COUNTIF(AN$94:AN101,AN101)-1 -> 1 | AM101: Bau3mex | AN101: =F75 -> 76 | AO101: =RANK(AQ101,AQ$94:AQ$101)+COUNTIF(AQ$94:AQ101,AQ101)-1 -> 6 | AP101: Bau3mex | AQ101: =G75 -> 37 | AS101: =RANK(AU101,AU$94:AU$101)+COUNTIF(AU$94:AU101,AU101)-1 -> 8 | AT101: Bau3mex | AU101: =H75 -> 58 | AV101: =RANK(AX101,AX$94:AX$101)+COUNTIF(AX$94:AX101,AX101)-1 -> 8 | AW101: Bau3mex | AX101: =I75 -> 25 | AZ101: =RANK(BB101,BB$94:BB$101)+COUNTIF(BB$94:BB101,BB101)-1 -> 8 | BA101: Bau3mex | BB101: =J75 -> 0 | BC101: =RANK(BE101,BE$94:BE$101)+COUNTIF(BE$94:BE101,BE101)-1 -> 8 | BD101: Bau3mex | BE101: =K75 -> 0 | BG101: =RANK(BI101,BI$94:BI$101)+COUNTIF(BI$94:BI101,BI101)-1 -> 8 | BH101: Bau3mex | BI101: =L75 -> 0 | BJ101: =RANK(BL101,BL$94:BL$101)+COUNTIF(BL$94:BL101,BL101)-1 -> 8 | BK101: Bau3mex | BL101: =M75 -> 0
